Cogmind - Beta 11.1 @@@ ROGUE MODE // 2022.06.13 @ 02:59:07 Player: Savant Result: Destroyed by MAIN.C with Improved Heavy Machine Gun Performance ------------- Evolutions (9) 4500 Regions Visited (32) 6400 Robots Destroyed (401) 2005 Value Destroyed (19391) 19391 Prototype IDs (131) 2620 Alien Tech Used (16) 3200 Bonus (21658) 21658 TOTAL SCORE: 59774 Bonus ------- High Alert Combat Kills 3226 Follower Combat Kills 2306 Met Data Miner 300 Met Imprinter 300 Met Warlord at Base 500 MAIN.C Attacked Warlord 500 Warlord Defense Kills 100 Met Warlord at Research 2000 Destroyed MAIN.C Guards 500 Met MAIN.C 5000 Destroyed MAIN.C Shell 5000 Met Warlord at Command 2000 Friendly Fire -74 Cogmind --------- Core Integrity 0/1600 Matter 140/300 Energy 100/100 System Corruption 12% Temperature Cool (0) Movement Hovering (56) Location -1/Command Parts ------- > --- POWER (2) -------- (None) > --- PROPULSION (7) --- Combat Linear Gravjet Combat Linear Gravjet > --- UTILITY (13) ----- High-capacity Storage Unit Spectral Analyzer Experimental Terrain Scan Processor Experimental Melee Analysis Suite Improved Armor Integrity Analyzer > --- WEAPON (4) ------- Nanosword Nanosword > --- INVENTORY (20) --- Mini Fusion Reactor Cooled Antimatter Reactor Advanced Energy Well (500) Experimental Energy Well (600) Experimental Terrain Scanner Transdimensional Reconstructor Core Stripper CR-A16's Behemoth Slayer Peak State ------------ > --- POWER ------------ Matter Drive > --- PROPULSION ------- Cooled Linear Gravjet Combat Linear Gravjet Combat Linear Gravjet Combat Linear Gravjet Combat Linear Gravjet Combat Linear Gravjet Combat Linear Gravjet > --- UTILITY ---------- Coolant Network High-capacity Storage Unit Spectral Analyzer Experimental Terrain Scan Processor Experimental Melee Analysis Suite Experimental Melee Analysis Suite Nanoactuators Advanced Reaction Control System Light Regenerative Plating AEGIS Remote Shield Advanced Hacking Suite System Mapper > --- WEAPON ----------- Nanosword Nanosword Sigix Broadsword > --- INVENTORY -------- Mini Fusion Reactor Cooled Antimatter Reactor Vortex Chain Reactor Combat Linear Gravjet Advanced Energy Well Experimental Terrain Scanner Improved Armor Integrity Analyzer Advanced Phase Shifter Experimental Focal Shield Experimental EM Disruption Field Antimissile System Transdimensional Reconstructor Integrity Redistributor Subatomic Replicator Compact HERF Cannon Hellfire Missile Launcher Core Stripper CR-A16's Behemoth Slayer [Rating: 255] Favorites ----------- Power Quantum Reactor Engine Ion Engine Power Core Enhanced Nuclear Core Reactor Quantum Reactor Propulsion Combat Gravmag System Treads Light Treads Leg Makeshift Leg Wheel Armored Wheel Hover Unit Combat Gravmag System Flight Unit Improved Diametric Drive Utility High-capacity Storage Unit Device Advanced Sensor Array Storage High-capacity Storage Unit Processor Advanced Melee Analysis Suite Hackware Advanced System Shield Protection Light Regenerative Plating Artifact Phase Redirector Weapon Makeshift Axe Energy Gun EM Pulse Gun Energy Cannon Neutron Cannon Ballistic Gun Assault Rifle Launcher Long-range Missile Launcher Special Weapon Improved Remote Datajack Impact Weapon Maul Slashing Weapon Makeshift Axe Piercing Weapon CR-A16's Behemoth Slayer Special Melee Weapon Datajack Build | -11 -10 -10 -10 -9 -8 -8 -7 -7 -7 -7 -6 -6 -6 -6 -6 -5 -5 -5 -5 -5 -4 -4 -4 -4 -4 -3 -3 -2 -2 -2 -1 -1 ------- Run | Scr Mat Min Exi Min Mat Sto Fac Low Low Zio Pro Fac Low Low Dat Pro Fac Upp Upp War Pro Fac Was Fac Ext Res Qua Res Tes Sec Acc Com Slots Evolved 18 | . . . . . 4 . 2 . . . . 2 . . . . 2 . . . . 2 . . . 2 . 2 . . 2 . Power 1 | . . . . . . . . . . . . . . . . . 1 . . . . . . . . . . . . . . . Propulsion 4 | . . . . . 2 . . . . . . 1 . . . . . . . . . . . . . . . . . . 1 . Utility 11 | . . . . . 2 . 1 . . . . 1 . . . . 1 . . . . 2 . . . 2 . 1 . . 1 . Weapon 2 | . . . . . . . 1 . . . . . . . . . . . . . . . . . . . . 1 . . . . Parts Attached 827 | 6 12 11 4 8 32 19 32 14 8 5 2 32 25 4 4 18 45 13 3 19 6 58 2 64 30 78 47 10 33 80 41 62 Power 59 | 1 1 . . 2 1 3 2 . . . . 1 1 . . . 4 2 . 4 . 5 . 7 1 3 7 1 1 2 2 8 Engine 8 | 1 1 . . 1 1 3 . . . . . . 1 . . . . . . . . . . . . . . . . . . . Core 18 | . . . . 1 . . 2 . . . . 1 . . . . 3 2 . 2 . 2 . 4 1 . . . . . . . Reactor 33 | . . . . . . . . . . . . . . . . . 1 . . 2 . 3 . 3 . 3 7 1 1 2 2 8 Propulsion 86 | 2 3 2 . . 7 4 6 2 . . . 7 . 1 . 2 10 . . 5 . 6 . 4 1 4 7 . 1 . 4 8 Treads 9 | 1 1 1 . . 1 2 3 . . . . . . . . . . . . . . . . . . . . . . . . . Leg 3 | . . . . . . . . 1 . . . . . . . 1 . . . 1 . . . . . . . . . . . . Wheel 16 | 1 2 1 . . 6 2 3 1 . . . . . . . . . . . . . . . . . . . . . . . . Hover 57 | . . . . . . . . . . . . 7 . 1 . 1 10 . . 3 . 6 . 4 1 4 7 . 1 . 4 8 Flight 1 | . . . . . . . . . . . . . . . . . . . . 1 . . . . . . . . . . . . Utility 480 | 1 2 1 1 3 8 5 13 7 5 5 . 20 15 3 1 12 20 11 1 8 2 42 . 39 19 63 27 6 25 58 25 32 Device 364 | . 1 . . 2 1 2 4 7 2 4 . 12 12 3 . 10 10 8 1 6 2 31 . 31 15 51 23 4 21 57 23 21 Storage 12 | 1 1 . 1 . 1 . . . 1 . . . . . . . . . . . . . . 1 1 . . 1 1 . 2 1 Processor 18 | . . . . . 4 . 3 . . 1 . 1 . . . . . 1 . . . 1 . . . 2 1 . 1 . . 3 Hackware 18 | . . . . . . . 3 . . . . 4 . . . . 5 . . . . 3 . . . 1 . . 2 . . . Protection 64 | . . 1 . 1 2 3 3 . 2 . . 3 3 . 1 2 5 2 . 2 . 7 . 7 3 9 . . . 1 . 7 Artifact 4 | . . . . . . . . . . . . . . . . . . . . . . . . . . . 3 1 . . . . Weapon 202 | 2 6 8 3 3 16 7 11 5 3 . 2 4 9 . 3 4 11 . 2 2 4 5 2 14 9 8 6 3 6 20 10 14 Energy Gun 20 | 1 1 1 1 . 8 2 3 1 . . . 1 . . . . . . . . . . . . . . . . 1 . . . Energy Cannon 39 | . 3 . . . . 1 . . . . . . . . . 1 2 . 1 . 2 2 . 5 1 4 1 . 1 8 5 2 Ballistic Gun 8 | 1 . 1 1 1 . 1 . . . . . . 1 . . . . . . . . . . . 1 . . . . 1 . . Ballistic Cannon . | . . . . . . . . . . . . . . . . . . . . . . . . . . . . . . . . . Launcher 16 | . . 3 . . . . . . . . 1 1 2 . . . 3 . . . . . 1 1 . . 1 1 . . . 2 Special Weapon 1 | . . . . . . . . . . . . . . . 1 . . . . . . . . . . . . . . . . . Impact Weapon 29 | . 2 3 . 2 8 3 4 1 . . 1 . . . . . . . . . . . . . . . 1 . 1 . . 3 Slashing Weapon 77 | . . . . . . . 3 2 2 . . 2 5 . 2 2 6 . 1 1 2 3 1 8 4 3 3 2 3 11 5 6 Piercing Weapon 10 | . . . . . . . 1 1 . . . . 1 . . 1 . . . 1 . . . . 3 1 . . . . . 1 Special Melee Weapon 2 | . . . 1 . . . . . 1 . . . . . . . . . . . . . . . . . . . . . . . Unidentified Prototypes 37 | . . . . . 1 4 1 . . . . . . 1 . 2 . . . 7 . . . . . . 4 1 6 5 1 4 Parts Lost 68 | . 2 2 . 1 3 4 10 3 3 . . 3 . . . . . . . . . 3 . 2 5 2 1 1 . 1 . 22 Power 8 | . 1 . . 1 . . 1 . . . . 1 . . . . . . . . . 1 . . 1 . . . . . . 2 Propulsion 20 | . . 1 . . 1 3 7 2 . . . . . . . . . . . . . . . . 1 1 . . . . . 4 Utility 32 | . . . . . 2 1 2 1 3 . . 2 . . . . . . . . . 2 . 2 2 . 1 1 . 1 . 12 Weapon 8 | . 1 1 . . . . . . . . . . . . . . . . . . . . . . 1 1 . . . . . 4 Highest Loss Streak 14 | . 1 2 . 1 3 2 6 1 1 . . 2 . . . . . . . . . 2 . 1 2 1 1 1 . 1 . 14 To Critical Strikes 2 | . . . . . . . . . . . . . . . . . . . . . . . . . 1 . . . . . . 1 Average Slot Usage (%) 95 | . 95 99 100 99 98 99 91 73 86 90 92 97 100 99 100 100 99 99 100 99 100 98 100 99 99 99 96 94 94 90 91 85 Engine 2 | . 13 14 14 8 5 9 1 . . . . . . 6 6 6 1 . . . . . . . . . . . . . . . Core 3 | . . . . 5 3 . 4 7 7 7 7 6 5 . . . 5 4 5 5 5 3 5 5 9 2 . . . . . . Reactor 2 | . . . . . . . . . . . . . . . . . 3 5 5 5 5 4 5 4 . 6 8 8 8 8 7 3 Treads 3 | . 14 14 14 14 9 13 21 2 . . . . . . . . . . . . . . . . . . . . . . . . Wheel 5 | . 13 13 14 14 27 22 4 7 15 15 15 . . . . . . . . . . . . . . . . . . . . . Hover 18 | . . . . . . . . . . . . 30 33 33 37 36 32 33 33 32 33 29 30 30 29 26 26 25 25 25 25 25 Device 10 | . 10 8 . 13 3 4 1 6 9 12 15 7 12 12 12 11 4 10 11 10 10 9 15 14 13 13 12 15 16 14 18 16 Storage 6 | . 14 14 14 14 9 9 7 7 7 7 7 6 6 6 6 6 5 5 5 5 5 5 5 5 5 4 4 4 4 4 3 3 Processor 10 | . . . . . 14 18 6 7 . 2 7 11 13 12 12 12 11 15 16 16 16 15 15 15 15 15 15 16 12 12 11 15 Hackware 6 | . . . . . . . 17 . . . . 8 6 6 6 6 14 5 5 5 5 13 10 10 10 13 10 4 11 9 7 4 Protection 3 | . . 5 14 . 8 4 1 7 14 12 7 2 . . . . 1 . . . . 1 . . 1 2 4 4 4 3 3 2 Impact Weapon 4 | . 10 16 . 12 15 17 13 7 7 7 6 1 . . . . . . . . . . . . . . . . . . . . Slashing Weapon 10 | . . . . . . . 5 10 15 15 15 18 19 19 18 17 15 16 15 16 15 14 13 14 13 7 8 11 11 11 9 10 Naked Turns . | . . . . . . . . . . . . . . . . . . . . . . . . . . . . . . . . . Heaviest Build 126 | 14 34 33 52 54 64 64 79 79 83 83 68 68 65 63 62 63 81 78 78 81 81 83 79 86 82 85 92 102 91 94 106 126 Greatest Support 126 | 16 16 16 16 16 44 36 82 32 28 28 28 70 70 70 70 84 84 80 80 83 83 88 88 94 94 102 102 101 101 109 126 126 Greatest Overweight (x) 5 | . 3 3 3 3 1 2 5 4 2 2 2 2 . . . 2 1 . . 1 . . . 1 . . . 1 . . . 1 Average Overweight (x) . | . 2 2 2 2 1 1 . 3 2 2 2 . . . . . . . . . . . . . . . . . . . . . Largest Inventory Capacity 20 | 8 15 15 20 20 20 20 20 20 20 20 20 20 20 20 20 20 20 20 20 20 20 20 20 20 20 20 20 20 20 20 20 20 Average Capacity 19 | 7 14 15 18 20 20 20 20 20 20 20 20 20 20 20 20 20 20 20 20 20 20 20 20 20 20 20 20 20 20 20 20 20 Most Carried 20 | 5 12 14 14 16 20 20 20 20 20 20 20 20 20 20 20 20 20 20 20 20 20 20 20 20 20 20 20 20 20 20 20 20 Average Carried 18 | 2 10 13 13 14 19 19 19 19 19 19 20 19 19 19 20 19 19 19 20 19 20 19 20 19 19 19 19 19 19 19 19 19 Final Capacity 20 | 8 15 15 20 20 20 20 20 20 20 20 20 20 20 20 20 20 20 20 20 20 20 20 20 20 20 20 20 20 20 20 20 20 Final Carried 20 | 5 12 13 14 15 20 20 20 20 20 20 20 20 20 20 20 20 20 20 20 20 20 20 20 20 19 20 20 20 20 20 20 9 Class Distribution -------------------- 24% | Machinist-Scout 22% | Mutant 14% | Hacker-Scout 12% | Hacker-Mutant 10% | Derelict-Mutant 7% | Machinist-Mutant Dominant Class ---------------- Mutant | -10/Materials Mutant | -10/Mines Mutant | -10/Exiles Mutant | -9/Mines Mutant | -8/Materials Mutant | -8/Storage Hacker-Mutant | -7/Factory Mutant | -7/Lower Caves Derelict-Mutant | -7/Lower Caves Derelict-Mutant | -7/Zion Derelict-Mutant | -6/Proximity Caves Machinist-Mutant | -6/Factory Machinist-Scout | -6/Lower Caves Machinist-Scout | -6/Lower Caves Machinist-Scout | -6/Data Miner Machinist-Scout | -5/Proximity Caves Hacker-Mutant | -5/Factory Machinist-Scout | -5/Upper Caves Machinist-Scout | -5/Upper Caves Machinist-Scout | -5/Warlord Machinist-Scout | -4/Proximity Caves Hacker-Scout | -4/Factory Machinist-Scout | -4/Waste Hacker-Scout | -4/Factory Commander-Mutant | -4/Extension Hacker-Scout | -3/Research Hacker-Scout | -3/Quarantine Machinist-Scout | -2/Research Hacker-Scout | -2/Testing Hacker-Scout | -2/Section 7 Machinist-Scout | -1/Access Hacker-Sprinter | -1/Command Resources | -11 -10 -10 -10 -9 -8 -8 -7 -7 -7 -7 -6 -6 -6 -6 -6 -5 -5 -5 -5 -5 -4 -4 -4 -4 -4 -3 -3 -2 -2 -2 -1 -1 ----------- Run | Scr Mat Min Exi Min Mat Sto Fac Low Low Zio Pro Fac Low Low Dat Pro Fac Upp Upp War Pro Fac Was Fac Ext Res Qua Res Tes Sec Acc Com Matter Collected 8148 | 229 173 117 130 120 315 184 284 197 112 59 71 280 257 158 . 227 483 177 40 66 144 546 . 539 408 730 564 108 335 620 185 290 Remotely . | . . . . . . . . . . . . . . . . . . . . . . . . . . . . . . . . . Salvage Created 20796 | . 445 143 . 112 1215 1151 987 370 184 . 35 291 131 . . 147 1295 220 . 66 108 1187 . 649 1679 2157 819 127 633 1747 1303 3595 Parts 981 | . 19 9 . 11 44 32 18 9 12 . 3 23 7 . . 14 75 10 . 3 6 50 . 44 69 115 53 9 12 100 88 146 Haulers Intercepted 18 | . 2 . . . 6 6 1 . . . . . . . . . . . . . . . . . . 3 . . . . . . Recyclers Shooed 4 | . . . . . . . . . . . . . . . . . 1 . . . . . . . 1 1 1 . . . . . Parts Field Recycled . | . . . . . . . . . . . . . . . . . . . . . . . . . . . . . . . . . Retrieved Matter . | . . . . . . . . . . . . . . . . . . . . . . . . . . . . . . . . . Parts Self-Destructed 59 | . . . . . . . . 9 11 . 1 . 5 . . 16 . 10 . . 7 . . . . . . . . . . . Prevented 4 | . . . . . . . . 4 . . . . . . . . . . . . . . . . . . . . . . . . Kills | -11 -10 -10 -10 -9 -8 -8 -7 -7 -7 -7 -6 -6 -6 -6 -6 -5 -5 -5 -5 -5 -4 -4 -4 -4 -4 -3 -3 -2 -2 -2 -1 -1 ------- Run | Scr Mat Min Exi Min Mat Sto Fac Low Low Zio Pro Fac Low Low Dat Pro Fac Upp Upp War Pro Fac Was Fac Ext Res Qua Res Tes Sec Acc Com Combat Hostiles Destroyed 304 | . 9 11 . 5 15 20 18 8 4 . 3 9 2 . . 4 20 3 . 1 4 16 . 11 17 24 9 4 2 19 17 49 Melee 206 | . 4 . . . 8 8 8 5 4 . . 7 2 . . 3 9 3 . 1 4 16 . 8 15 24 6 . 1 19 17 34 Guns 7 | . . 3 . 4 . . . . . . . . . . . . . . . . . . . . . . . . . . . . Cannons 2 | . 2 . . . . . . . . . . . . . . . . . . . . . . . . . . . . . . . AOE 45 | . 1 6 . 1 . . . . . . 3 2 . . . . 11 . . . . . . 3 . . 3 4 . . . 11 Classes Destroyed 21 | . 7 . . . 1 2 2 . . . . . 1 . . . . . . . . . . . 2 1 . . 2 1 . 2 Worker 18 | . 1 . . . 1 1 2 . . . . . . . . . 5 . . . . . . 3 . . 2 . 1 . . 2 Builder 20 | . 1 . . 1 2 . . . . . . . . . . . 1 . . . . 1 . 2 1 2 1 . 1 2 5 . Hauler 18 | . 2 . . . 6 6 1 . . . . . . . . . . . . . . . . . . 3 . . . . . . Recycler 16 | . 1 . . . 1 . 1 . . . . . . . . . 3 . . . . . . . 3 3 2 . . 1 . 1 Watcher 26 | . 2 . . . 3 1 1 . . . . . . . . . 2 . . . . 2 . 1 . 1 3 1 . 3 2 4 Swarmer 84 | . 3 9 . 5 . . . . . . 3 6 . . . 3 9 . . . 4 . . 4 . 5 3 4 . . 4 22 Cutter 5 | . . . . . . . . . . . . . . . . . . . . . . . . . . 5 . . . . . . Saboteur 1 | . . . . . . . . . . . . . . . . . . . . . . . . . . . . . . . . 1 Grunt 75 | . 6 2 . . 9 7 12 6 2 . . . . . . . 4 3 . 1 . 4 . . 5 6 . . . 3 4 1 Brawler 4 | . . . . . . . 1 1 1 . . . . . . . 1 . . . . . . . . . . . . . . . Duelist 1 | . . . . . . . . . . . . . . . . . . . . . . . . . . . . . . . . 1 Protector 2 | . . . . . . . . . . . . . . . . . . . . . . . . . 2 . . . . . . . Researcher 1 | . . . . . . . . . . . . . . . . . . . . . . . . . . . . . 1 . . . Sentry 38 | . . . . . 6 9 3 . . . . 1 1 . . . 1 . . . . 3 . 2 4 3 . . . 3 1 1 Demolisher 1 | . . . . . . 1 . . . . . . . . . . . . . . . . . . . . . . . . . . Specialist 1 | . . . . . . . . . . . . . . . . . . . . . . . . . 1 . . . . . . . Hunter 20 | . . . . . . 3 1 . 1 . . . . . . . 1 . . . . 4 . 2 1 . . . 1 . 2 4 Programmer 58 | . . . . . . . 1 1 . . . 2 . . . . 4 . . . . 5 . 3 2 5 6 . . 10 6 13 Behemoth 5 | . . . . . . . . . . . . . 1 . . 1 . . . . . . . . 2 . . . . . . 1 S7 Guard 1 | . . . . . . . . . . . . . . . . . . . . . . . . . . . . . . 1 . . M Guard 2 | . . . . . . . . . . . . . . . . . . . . . . . . . . . . . . . . 2 Combat Programmer 2 | . . . . . . . . . . . . . . . . . . . . . . . . . . . . . . . . 2 Executioner 2 | . . . . . . . . . . . . . . . . . . . . . . . . . . . . . . 2 . . Fortress 1 | . . . . . . . . . . . . . . . . . . . . . . . . . . . . . 1 . . . Best Kill Streak 12 | . 3 3 . 3 5 6 5 3 2 . 3 4 1 . . 3 7 3 . 1 5 5 . 3 3 5 6 5 1 5 5 12 Combat Bots Only 11 | . 3 3 . 3 4 6 4 3 2 . 3 4 1 . . 3 5 3 . 1 5 5 . 3 3 5 3 4 1 5 5 11 Max Kills in Single Turn 5 | . 1 3 . 1 1 1 1 1 1 . 2 2 1 . . 1 5 1 . 1 1 1 . 3 1 2 3 4 1 1 1 5 Gunslinging . | . . . . . . . . . . . . . . . . . . . . . . . . . . . . . . . . . Exploded 5 | . 1 3 . 1 . . . . . . 2 2 . . . . 5 . . . . . . 3 . . 1 4 . . . 5 Melee 2 | . 1 . . . 1 1 1 1 1 . . 1 1 . . 1 1 1 . 1 1 1 . 1 1 2 1 . 1 1 1 2 Uniques/NPCs Destroyed 1 | . . . . . . . . . . . . . . . . . . . . . . . . . . . . . . . . 1 MAIN.C Shell (-1/Command) Combat | -11 -10 -10 -10 -9 -8 -8 -7 -7 -7 -7 -6 -6 -6 -6 -6 -5 -5 -5 -5 -5 -4 -4 -4 -4 -4 -3 -3 -2 -2 -2 -1 -1 -------- Run | Scr Mat Min Exi Min Mat Sto Fac Low Low Zio Pro Fac Low Low Dat Pro Fac Upp Upp War Pro Fac Was Fac Ext Res Qua Res Tes Sec Acc Com Damage Taken 21913 | . 335 402 . 111 943 1060 2171 668 306 . 87 450 79 . . 207 1228 40 . 10 131 1146 . 426 1510 1202 448 272 93 824 365 7399 Core 3427 | . 70 50 . 6 142 161 275 78 65 . . 35 . . . 33 132 . . . 9 219 . 125 247 191 94 24 . 104 13 1354 Absorbed by Shields 1429 | . . . . . . . . . . . . . . . . . . . . 9 122 76 . . 114 . . . . . . 1108 Redirected to Core 95 | . . . . . . . . . . . . . . . . . . . . . . . . . . . 71 24 . . . . Regen/Repaired (Parts) 6173 | . . . . . . . 199 . . . . 101 . . . . 403 . . . 23 641 . 221 111 502 702 151 152 617 245 2105 Core Remaining (%) 68 | 100 . . . 49 . 44 . . . . 40 . . . . 92 . . . . 85 . . . 48 . 78 . . 82 . . Volleys Fired 154 | . 20 12 . 7 14 2 4 . . . 2 1 5 . 1 2 8 . 2 . 3 3 3 8 2 9 13 1 . 9 13 10 Largest 2 | . 2 2 . 2 2 1 2 . . . 1 1 1 . 1 1 1 . 1 . 1 1 1 1 1 1 1 1 . 1 1 1 Hottest 136 | . 136 60 . 63 110 50 100 . . . 43 43 43 . 7 98 90 . 90 . 90 90 43 90 94 90 90 49 . 120 120 120 Shots Fired 197 | . 31 20 . 14 27 2 8 . . . 2 1 5 . 1 2 8 . 2 . 3 3 3 8 2 9 13 1 . 9 13 10 Gun 83 | . 16 16 . 14 27 2 8 . . . . . . . . . . . . . . . . . . . . . . . . . Cannon 81 | . 15 . . . . . . . . . . . . . . 2 2 . 2 . 3 3 . 7 2 9 10 . . 9 13 4 Launcher 32 | . . 4 . . . . . . . . 2 1 5 . . . 6 . . . . . 3 1 . . 3 1 . . . 6 Special 1 | . . . . . . . . . . . . . . . 1 . . . . . . . . . . . . . . . . . Kinetic 24 | . 9 8 . 7 . . . . . . . . . . . . . . . . . . . . . . . . . . . . Thermal 99 | . 15 . . . 21 . . . . . . . . . . 2 2 . 2 . 3 3 . 7 . 9 10 . . 9 13 3 Explosive 32 | . . 4 . . . . . . . . 2 1 5 . . . 6 . . . . . 3 1 . . 3 1 . . . 6 Electromagnetic 41 | . 7 8 . 7 6 2 8 . . . . . . . . . . . . . . . . . 2 . . . . . . 1 Robot Hit Streak 8 | . 8 3 . 5 5 . 5 . . . 2 . . . 3 . 5 . . . . . 6 . . . 4 5 . . . 7 Robot Miss Streak 4 | . 2 4 . 1 2 . 1 . . . . . . . . . 1 . . . . . 1 . . . . . . . . 1 Penetration Max . | . . . . . . . . . . . . . . . . . . . . . . . . . . . . . . . . . Secondary Targets 1 | . . 1 . . . . . . . . . . . . . . . . . . . . . . . . . . . . . . Max Gunslinging Chain 1 | . . 1 . . . . . . . . . . . . . . . . . . . . . . . . . . . . . . Shots Hit Robots 972 | . 44 13 4 11 71 73 76 18 11 . 1 25 2 . 1 7 56 4 . 5 8 79 2 27 86 67 23 2 6 62 40 148 Core Hits 416 | . 14 9 . 5 19 10 17 8 5 . 3 9 4 . . 4 41 4 . 2 4 27 . 19 30 37 18 5 1 24 19 78 Critical Kills 24 | . 5 . . . 5 6 5 2 1 . . . . . . . . . . . . . . . . . . . . . . . Critical Parts Destroyed 47 | . 3 1 . . 12 14 13 3 1 . . . . . . . . . . . . . . . . . . . . . . . Critical Strikes 139 | . 9 1 . . 18 21 21 5 2 . . 3 1 . . . 8 . . 1 . 8 . 2 15 8 4 . . 6 2 4 Corrupt 1 | . 1 . . . . . . . . . . . . . . . . . . . . . . . . . . . . . . . Smash 74 | . 8 1 . . 18 21 19 5 2 . . . . . . . . . . . . . . . . . . . . . . . Sever 57 | . . . . . . . 2 . . . . 3 . . . . 8 . . 1 . 8 . 2 14 3 4 . . 6 2 4 Impale 7 | . . . . . . . . . . . . . 1 . . . . . . . . . . . 1 5 . . . . . . Melee Attacks 1800 | . 39 8 4 2 69 98 115 33 21 1 5 61 61 14 . 27 133 22 15 6 35 160 . 91 110 146 67 9 34 108 107 199 Kinetic 7 | . . . . . . . . . . . . . . . . . . . . . . . . . . . . . 2 . . 5 Impact 357 | . 39 8 . 2 69 98 98 24 14 1 3 1 . . . . . . . . . . . . . . . . . . . . Slashing 1356 | . . . . . . . 11 5 7 . 2 60 60 14 . 19 133 22 15 6 35 160 . 91 100 101 67 9 32 108 107 192 Piercing 76 | . . . . . . . 6 4 . . . . 1 . . 8 . . . . . . . . 10 45 . . . . . 2 Sneak Attacks 98 | . 4 . 4 1 9 8 5 1 . . . 2 . . . . 8 . . . 1 5 . 5 13 10 2 . 3 7 7 3 Combat Hostiles 16 | . . . . . . . . 1 . . . . . . . . . . . . 1 1 . . 7 1 . . . 4 1 . Follow-up Attacks 226 | . . 1 . . 13 13 18 2 4 . . 11 . . . 4 19 1 . . 3 25 . 5 26 14 3 . . 15 4 45 Damage Inflicted 60560 | . 1516 837 . 214 2545 3017 2998 716 395 . 227 1287 185 . . 245 4124 198 . 228 425 4037 336 1857 4769 3868 2274 565 692 5502 4273 13230 Guns 786 | . 129 86 . 104 355 . 112 . . . . . . . . . . . . . . . . . . . . . . . . . Cannons 329 | . 309 . . . . . . . . . . . . . . . . . . . . . . . . . . . . . . 20 Explosions 6229 | . 85 538 . 48 . . 69 . . . 227 148 98 . . . 1431 . . . . . 336 155 . . 517 485 . . . 2092 Melee 53204 | . 993 201 . 62 2190 3017 2817 716 395 . . 1139 87 . . 245 2693 198 . 228 425 4037 . 1702 4769 3868 1757 80 692 5502 4273 11118 Ramming 12 | . . 12 . . . . . . . . . . . . . . . . . . . . . . . . . . . . . . Kinetic 369 | . 51 52 . 62 . . . . . . . . . . . . . . . . . . . . . . . . 71 . . 133 Thermal 862 | . 394 . . 48 252 . 69 . . . . . . . . . 99 . . . . . . . . . . . . . . . Explosive 5806 | . . 538 . . . . . . . . 227 148 98 . . . 1210 . . . . . 336 155 . . 517 485 . . . 2092 Electromagnetic 511 | . 78 34 . 42 103 . 112 . . . . . . . . . 122 . . . . . . . . . . . . . . 20 Impact 9917 | . 993 201 . 62 2190 3017 2533 619 302 . . . . . . . . . . . . . . . . . . . . . . . Slashing 41343 | . . . . . . . 228 68 93 . . 1139 42 . . 208 2693 198 . 228 425 4037 . 1702 4391 2673 1757 80 621 5502 4273 10985 Piercing 1740 | . . . . . . . 56 29 . . . . 45 . . 37 . . . . . . . . 378 1195 . . . . . . Highest Corruption 14 | . . . . . . 1 3 10 14 14 . 1 . . . . 1 . . . . 2 . 1 . 3 1 . . 1 1 12 Average Corruption 4 | . . . . . . 1 1 6 13 14 . 1 . . . . 1 . . . . 1 . 1 . 1 1 . . 1 1 1 Corruption Purged 13 | . . . . . . . . . . . . 1 . . . . 1 . . . . 4 . 1 . 5 1 . . . . . Corruption Blocked 20 | . . . . . . . . . . . . . . . . . . . . . . . . . . . . . 20 . . . Effects 113 | . . . . . . 6 9 30 40 2 . 1 . . . . . . . . . 2 . 1 . . 2 . . 11 . 9 Message Errors 30 | . . . . . . 1 3 11 8 . . . . . . . . . . . . . . 1 . . . . . 4 . 2 Matter Fused 25 | . . . . . . 2 2 7 10 . . . . . . . . . . . . . . . . . 1 . . 2 . 1 Heat Flow Errors 16 | . . . . . . 3 . 5 4 . . 1 . . . . . . . . . . . . . . . . . 2 . 1 Energy Discharges 9 | . . . . . . . . 3 5 . . . . . . . . . . . . . . . . . . . . . . 1 Parts Rejected 1 | . . . . . . . . . 1 . . . . . . . . . . . . . . . . . . . . . . . Data Loss (minor) 22 | . . . . . . . 2 2 11 2 . . . . . . . . . . . 1 . . . . 1 . . 2 . 1 Data Loss (major) 5 | . . . . . . . 2 1 . . . . . . . . . . . . . 1 . . . . . . . 1 . . Alerts 3 | . . . . . . . . 1 1 . . . . . . . . . . . . . . . . . . . . . . 1 Misdirections 2 | . . . . . . . . . . . . . . . . . . . . . . . . . . . . . . . . 2 Overload Shots . | . . . . . . . . . . . . . . . . . . . . . . . . . . . . . . . . . Overflow Damage 8255 | . 240 104 . 22 575 704 770 203 32 . . 101 . . . 15 564 . . . 48 278 . 175 457 283 396 26 396 634 1061 1171 Projectiles . | . . . . . . . . . . . . . . . . . . . . . . . . . . . . . . . . . Explosions 267 | . . 46 . . . . . . . . . . . . . . 170 . . . . . . . . . 9 26 . . . 16 Melee 7988 | . 240 58 . 22 575 704 770 203 32 . . 101 . . . 15 394 . . . 48 278 . 175 457 283 387 . 396 634 1061 1155 Knockbacks 27 | . 4 . . 1 3 9 7 2 1 . . . . . . . . . . . . . . . . . . . . . . . Impact 25 | . 4 . . 1 3 7 7 2 1 . . . . . . . . . . . . . . . . . . . . . . . Kinetic . | . . . . . . . . . . . . . . . . . . . . . . . . . . . . . . . . . Secondary 2 | . . . . . . 2 . . . . . . . . . . . . . . . . . . . . . . . . . . Self-Inflicted Damage 264 | . . 137 . 10 . . 63 . . . . . . . . . 54 . . . . . . . . . . . . . . . Shots 6 | . . 3 . 1 . . 1 . . . . . . . . . 1 . . . . . . . . . . . . . . . Rammed 2 | . . 2 . . . . . . . . . . . . . . . . . . . . . . . . . . . . . . Targets Rammed 2 | . . 2 . . . . . . . . . . . . . . . . . . . . . . . . . . . . . . Kicked . | . . . . . . . . . . . . . . . . . . . . . . . . . . . . . . . . . Crushed . | . . . . . . . . . . . . . . . . . . . . . . . . . . . . . . . . . Highest Temperature 312 | . 150 55 . 39 117 232 216 278 251 . . 96 12 2 . 124 292 312 85 10 80 152 12 104 239 36 8 199 199 194 . 48 Average Temperature 48 | . 57 23 . 16 44 82 76 113 100 . . 7 3 2 . 22 58 34 5 2 28 38 4 12 41 11 5 125 97 112 . 48 Received Heat Transfer 3411 | . 156 33 . 27 351 486 981 261 90 . . 30 . . . 36 207 21 . 4 . 64 . 18 165 153 . 9 9 45 27 238 Effects 12 | . . . . . . . . 1 2 . . . . . . . 8 . . . . . . . 1 . . . . . . . Energy Bleed 5 | . . . . . . . . 1 . . . . . . . . 3 . . . . . . . 1 . . . . . . . Interference 7 | . . . . . . . . . 2 . . . . . . . 5 . . . . . . . . . . . . . . . Siege Activations . | . . . . . . . . . . . . . . . . . . . . . . . . . . . . . . . . . Robots Corrupted 1 | . . . . . . . 1 . . . . . . . . . . . . . . . . . . . . . . . . . Combat Hostiles 1 | . . . . . . . 1 . . . . . . . . . . . . . . . . . . . . . . . . . Parts Fried 78 | . 10 3 . 4 17 26 15 1 . . . . . . . . . . . . . . . . . . 2 . . . . . Impact Corruptions 99 | . 10 3 . 2 21 30 26 6 1 . . . . . . . . . . . . . . . . . . . . . . . Robots Melted . | . . . . . . . . . . . . . . . . . . . . . . . . . . . . . . . . . Combat Hostiles . | . . . . . . . . . . . . . . . . . . . . . . . . . . . . . . . . . Parts Melted 7 | . 2 . . . . 1 1 . . . . . . . . . 1 . . . . 1 . . . . . . . . . 1 Heat Transferred 1236 | . 605 . . 50 481 . 50 . . . . . . . . . 50 . . . . . . . . . . . . . . . Parts Sabotaged 4 | . . . . . . . . . . . . . . . . . . . . . . . . . . . . . . . . 4 Parts Stolen . | . . . . . . . . . . . . . . . . . . . . . . . . . . . . . . . . . Parts Stripped . | . . . . . . . . . . . . . . . . . . . . . . . . . . . . . . . . . Power Chain Reactions 3 | . 1 . . 1 . . 1 . . . . . . . . . . . . . . . . . . . . . . . . . Missiles Intercepted 4 | . . . . . . . . . . . . . . . . . . . . . . . . . . . . . . . . 4 Alert | -11 -10 -10 -10 -9 -8 -8 -7 -7 -7 -7 -6 -6 -6 -6 -6 -5 -5 -5 -5 -5 -4 -4 -4 -4 -4 -3 -3 -2 -2 -2 -1 -1 ------- Run | Scr Mat Min Exi Min Mat Sto Fac Low Low Zio Pro Fac Low Low Dat Pro Fac Upp Upp War Pro Fac Was Fac Ext Res Qua Res Tes Sec Acc Com Peak Influence 1271 | . 297 280 . 111 342 611 322 . . . . 147 . . . . 687 . . . . 163 68 195 953 660 478 628 466 237 796 1271 Initial 417 | . . 72 . . . 52 194 . . . . . . . . . . . . . . . 4 47 95 417 348 218 347 53 133 271 Average 240 | . 131 185 . 65 141 286 123 . . . . 38 . . . . 195 . . . . 44 33 55 538 383 367 552 183 100 505 901 Maximum Alert Level 5 | . 1 1 . . 1 2 1 . . . . . . . . . 2 . . . . . . . 3 2 2 2 2 1 3 5 Low Security (%) 59 | 100 75 53 . 100 75 30 90 . . . . 100 . . . . 74 . . . . 100 100 100 14 18 . . 62 84 7 . Level 1 17 | . 24 46 . . 24 38 9 . . . . . . . . . 7 . . . . . . . 18 30 69 12 8 15 15 3 Level 2 16 | . . . . . . 30 . . . . . . . . . . 17 . . . . . . . 31 50 30 87 29 . 70 18 Level 3 3 | . . . . . . . . . . . . . . . . . . . . . . . . . 35 . . . . . 7 26 Level 4 2 | . . . . . . . . . . . . . . . . . . . . . . . . . . . . . . . . 48 Level 5 . | . . . . . . . . . . . . . . . . . . . . . . . . . . . . . . . . 2 High Security . | . . . . . . . . . . . . . . . . . . . . . . . . . . . . . . . . . Max Security . | . . . . . . . . . . . . . . . . . . . . . . . . . . . . . . . . . Squads Dispatched 96 | . 4 . . . 4 4 11 . . . . 3 . . . . 5 . . . . 7 . 8 6 15 5 1 5 5 6 7 Investigation 36 | . 3 . . . 2 2 5 . . . . . . . . . 2 . . . . 5 . 5 1 3 2 1 . 1 3 1 Extermination 27 | . . . . . . . 2 . . . . 3 . . . . 3 . . . . 2 . 2 . 3 2 . 2 4 2 2 Reinforcement 26 | . 1 . . . 2 1 4 . . . . . . . . . . . . . . . . 1 2 8 1 . 3 . 1 2 Assault 7 | . . . . . . 1 . . . . . . . . . . . . . . . . . . 3 1 . . . . . 2 Garrison . | . . . . . . . . . . . . . . . . . . . . . . . . . . . . . . . . . Intercept . | . . . . . . . . . . . . . . . . . . . . . . . . . . . . . . . . . Searches Triggered . | . . . . . . . . . . . . . . . . . . . . . . . . . . . . . . . . . Data Miner Redirects 14 | . . . . . . . . . . . . . . . . . 1 . . . . 5 . 3 2 1 1 . . . 1 . Construction Impeded 1 | . . . . . 1 . . . . . . . . . . . . . . . . . . . . . . . . . . . Haulers Reinforced 4 | . . . . . . . 2 . . . . . . . . . . . . . . . . . . 2 . . . . . . Active Scanning Responses . | . . . . . . . . . . . . . . . . . . . . . . . . . . . . . . . . . Cargo Convoy Interrupts 1 | . . . . . . . . . . . . . . . . . . . . . . 1 . . . . . . . . . . Stealth | -11 -10 -10 -10 -9 -8 -8 -7 -7 -7 -7 -6 -6 -6 -6 -6 -5 -5 -5 -5 -5 -4 -4 -4 -4 -4 -3 -3 -2 -2 -2 -1 -1 --------- Run | Scr Mat Min Exi Min Mat Sto Fac Low Low Zio Pro Fac Low Low Dat Pro Fac Upp Upp War Pro Fac Was Fac Ext Res Qua Res Tes Sec Acc Com Distress Signals 38 | . 2 . . . 3 3 1 . . . . . . . . . . . . . . 2 . 1 5 3 . 7 1 3 3 4 Communications Jammed . | . . . . . . . . . . . . . . . . . . . . . . . . . . . . . . . . . Distress Signals . | . . . . . . . . . . . . . . . . . . . . . . . . . . . . . . . . . Times Spotted 579 | . 20 12 . 8 41 37 26 9 7 . 2 16 2 . . 4 39 5 . 2 4 23 6 14 51 47 16 6 4 28 34 116 Peak Tracking Total 52 | . 4 3 . 3 6 7 5 3 4 . 3 5 1 . . 3 6 3 . 3 4 4 6 4 7 6 3 6 1 4 8 52 Tactical Retreats 46 | . 1 1 . . 2 . 5 3 3 . . 1 . . . . 7 2 . . . . . 2 1 2 1 1 . . 7 7 Traps | -11 -10 -10 -10 -9 -8 -8 -7 -7 -7 -7 -6 -6 -6 -6 -6 -5 -5 -5 -5 -5 -4 -4 -4 -4 -4 -3 -3 -2 -2 -2 -1 -1 ------- Run | Scr Mat Min Exi Min Mat Sto Fac Low Low Zio Pro Fac Low Low Dat Pro Fac Upp Upp War Pro Fac Was Fac Ext Res Qua Res Tes Sec Acc Com Traps Triggered 20 | . 1 . . . . 4 3 1 1 . . 1 . . . . 4 . . . . 2 . 1 1 . . . . . 1 . Indirectly 1 | . . . . . . . . . . . . . . . . . 1 . . . . . . . . . . . . . . . Trap Hack Attempts . | . . . . . . . . . . . . . . . . . . . . . . . . . . . . . . . . . Triggered . | . . . . . . . . . . . . . . . . . . . . . . . . . . . . . . . . . Disarmed 7 | . . . . . 6 . . . . . . . . . . . . . . . . . . . . . 1 . . . . . Reprogrammed 40 | . 6 . . . . 6 . . . . . . . . . . 4 . . . . . . . . 6 6 . 6 6 . . Reused 9 | . . . . . . . . . . . . . . . . . 3 . . . . . . . . 1 5 . . . . . Traps Extracted . | . . . . . . . . . . . . . . . . . . . . . . . . . . . . . . . . . Installed 9 | . . . . . . . . 7 . . . . . . . . . . 2 . . . . . . . . . . . . . Triggered 17 | . . . . . . . . . . . . . . . . . 3 1 . 7 . . . . . 1 5 . . . . . Machines | -11 -10 -10 -10 -9 -8 -8 -7 -7 -7 -7 -6 -6 -6 -6 -6 -5 -5 -5 -5 -5 -4 -4 -4 -4 -4 -3 -3 -2 -2 -2 -1 -1 ---------- Run | Scr Mat Min Exi Min Mat Sto Fac Low Low Zio Pro Fac Low Low Dat Pro Fac Upp Upp War Pro Fac Was Fac Ext Res Qua Res Tes Sec Acc Com Machines Disabled 42 | . 2 4 . . . 3 1 . . . . 1 . . . . 4 . . . . 1 . . 4 . 8 . 6 5 2 1 Max in Single Turn 2 | . 1 2 . . . 1 1 . . . . 1 . . . . 2 . . . . 1 . . 1 . 1 . 1 1 1 1 Garrison Access 18 | . . . . . . 1 2 . . . . . . . . . 2 . . . . 3 . 1 . 3 . 1 1 1 3 . Energy Cycler 1 | . . . . . . . . . . . . . . . . . . . . . . . . . 1 . . . . . . . Machines Sabotaged . | . . . . . . . . . . . . . . . . . . . . . . . . . . . . . . . . . Garrisons Compromised . | . . . . . . . . . . . . . . . . . . . . . . . . . . . . . . . . . Overloaded Fab Kills . | . . . . . . . . . . . . . . . . . . . . . . . . . . . . . . . . . Hacking | -11 -10 -10 -10 -9 -8 -8 -7 -7 -7 -7 -6 -6 -6 -6 -6 -5 -5 -5 -5 -5 -4 -4 -4 -4 -4 -3 -3 -2 -2 -2 -1 -1 --------- Run | Scr Mat Min Exi Min Mat Sto Fac Low Low Zio Pro Fac Low Low Dat Pro Fac Upp Upp War Pro Fac Was Fac Ext Res Qua Res Tes Sec Acc Com Machines Accessed 227 | . 8 . 1 . 10 15 15 1 1 . 1 10 . 2 4 . 27 1 . 2 . 23 . 15 2 20 12 2 9 19 13 14 Terminals 125 | . 6 . . . 7 12 6 . . . 1 2 . 1 . . 16 1 . . . 9 . 6 2 9 6 1 7 16 5 12 Fabricators 21 | . . . . . . . 5 . . . . 2 . . . . 3 . . . . 3 . 3 . 3 . . . . 2 . Repair Stations 24 | . . . . . . 1 1 . . . . 1 . . . . 4 . . . . 5 . 3 . 2 2 . 1 . 3 1 Recycling Units 10 | . 2 . . . 1 1 . . . . . 1 . . . . . . . . . 2 . 1 . 1 . . . . . 1 Scanalyzers 18 | . . . . . 2 . 1 . . . . 3 . . . . 2 . . . . 1 . 1 . 3 3 . . 2 . . Garrison Access 19 | . . . . . . 1 2 . . . . 1 . . . . 2 . . . . 3 . 1 . 2 1 1 1 1 3 . Total Hacks 771 | . 28 . 1 . 31 32 60 1 1 . 2 48 . 2 29 . 112 1 . 8 . 81 . 62 9 77 41 4 34 49 25 33 Successful 502 | . 16 . 1 . 20 17 32 1 1 . 2 28 . 2 29 . 65 1 . 8 . 52 . 41 6 54 28 2 18 45 14 19 Failed 268 | . 12 . . . 11 15 28 . . . . 20 . . . . 46 . . . . 29 . 21 3 23 13 2 16 4 11 14 Catastrophic 22 | . . . . . . 1 3 . . . . 4 . . . . 1 . . . . . . 4 1 1 2 1 1 1 . 2 Database Lockouts 1 | . . . . . . . . . . . . . . . . . 1 . . . . . . . . . . . . . . . Manual 237 | . 14 . . . 13 8 14 . . . . 10 . . . . 38 . . 1 . 18 . 15 8 22 13 1 17 22 5 18 Terminals 427 | . 26 . . . 23 28 27 . . . 2 10 . 1 . . 72 1 . . . 38 . 22 9 40 21 2 28 40 10 27 Fabricators 66 | . . . . . . . 20 . . . . 4 . . . . 8 . . . . 8 . 12 . 10 . . . . 4 . Repair Stations 96 | . . . . . . 1 4 . . . . 3 . . . . 17 . . . . 24 . 14 . 8 11 . 4 . 7 3 Recycling Units 20 | . 2 . . . 1 1 . . . . . 2 . . . . . . . . . 6 . 3 . 2 . . . . . 3 Scanalyzers 88 | . . . . . 7 . 5 . . . . 25 . . . . 12 . . . . 2 . 8 . 15 6 . . 8 . . Garrison Access 33 | . . . . . . 2 4 . . . . 4 . . . . 3 . . . . 3 . 3 . 2 3 2 2 1 4 . Terminal Hacks 210 | . 10 . 1 . 11 11 9 1 1 . 2 3 . 2 29 . 29 1 . 8 . 16 . 6 4 16 5 1 10 23 5 6 Record 16 | . . . 1 . . . . . . . 2 . . 1 11 . . 1 . . . . . . . . . . . . . . Part Schematic 22 | . 2 . . . . . 1 . . . . . . . 10 . 4 . . . . 2 . . . 1 . . 1 1 . . Robot Schematic 5 | . . . . . . . . . . . . . . . 5 . . . . . . . . . . . . . . . . . Robot Analysis 6 | . . . . . 2 . . . . . . . . . . . 2 . . . . 1 . . . 1 . . . . . . Prototype ID Bank 23 | . . . . . 2 1 1 . . . . . . . 3 . 3 . . 7 . . . 1 1 2 1 . . . . 1 Open Door 14 | . . . . . . 4 . 1 1 . . . . 1 . . . . . 1 . . . . . . . . . 5 . 1 Branch Access Points 7 | . 1 . . . 1 . 1 . . . . . . . . . . . . . . 1 . 1 . 1 . 1 . . . . Machine Index 1 | . . . . . . . . . . . . . . . . . . . . . . . . . . . . . . . 1 . Terminal Index 5 | . . . . . . . . . . . . . . . . . . . . . . 1 . 1 . . . . . 2 . 1 Repair Station Index 1 | . . . . . . . . . . . . . . . . . . . . . . 1 . . . . . . . . . . Recycling Unit Index 1 | . 1 . . . . . . . . . . . . . . . . . . . . . . . . . . . . . . . Scanalyzer Index 2 | . . . . . . . . . . . . . . . . . 1 . . . . . . . . . . . . 1 . . Alert Level 12 | . . . . . . 1 1 . . . . . . . . . 2 . . . . 2 . 1 . 2 . . 1 1 . 1 Unreport Threat 29 | . . . . . 2 . 1 . . . . 1 . . . . 6 . . . . 3 . 1 3 2 1 . 4 2 3 . Locate Traps 31 | . 3 . . . 2 3 2 . . . . 1 . . . . 2 . . . . 5 . 1 . 2 1 . 1 6 1 1 Disarm Traps 2 | . . . . . 1 . . . . . . . . . . . . . . . . . . . . . 1 . . . . . Reprogram Traps 7 | . 1 . . . . 1 . . . . . . . . . . 1 . . . . . . . . 1 1 . 1 1 . . Security Status 1 | . . . . . . . . . . . . . . . . . . . . . . . . . . . . . . 1 . . Transport Status 1 | . . . . . . . . . . . . . . . . . . . . . . . . . . 1 . . . . . . Recall Extermination 4 | . . . . . . . . . . . . . . . . . 1 . . . . . . . . . . . 2 1 . . Recall Reinforcements 1 | . . . . . . . . . . . . . . . . . . . . . . . . . . 1 . . . . . . Hauler Manifests 5 | . . . . . . 1 1 . . . . . . . . . 1 . . . . . . . . 1 . . . 1 . . Zone Layout 12 | . 2 . . . 1 . 1 . . . . 1 . . . . 6 . . . . . . . . 1 . . . . . . Activate Exoskeleton 1 | . . . . . . . . . . . . . . . . . . . . . . . . . . . . . . 1 . . Disengage Seal 1 | . . . . . . . . . . . . . . . . . . . . . . . . . . . . . . . . 1 Fabricator Hacks 37 | . . . . . . . 8 . . . . 2 . . . . 7 . . . . 4 . 8 . 7 . . . . 1 . Network Status 6 | . . . . . . . 1 . . . . . . . . . 1 . . . . 1 . 2 . 1 . . . . . . Load Schematic 15 | . . . . . . . 4 . . . . 1 . . . . 2 . . . . 1 . 3 . 3 . . . . 1 . Build 16 | . . . . . . . 3 . . . . 1 . . . . 4 . . . . 2 . 3 . 3 . . . . . . Repair Station Hacks 68 | . . . . . . . 4 . . . . 2 . . . . 9 . . . . 17 . 12 . 3 11 . 4 . 4 2 Scan Component 37 | . . . . . . . 2 . . . . 1 . . . . 5 . . . . 9 . 6 . 2 6 . 2 . 3 1 Repair 30 | . . . . . . . 2 . . . . 1 . . . . 4 . . . . 7 . 6 . 1 5 . 2 . 1 1 Refit 1 | . . . . . . . . . . . . . . . . . . . . . . 1 . . . . . . . . . . Recycling Unit Hacks 7 | . . . . . . . . . . . . 1 . . . . . . . . . 2 . 2 . 1 . . . . . 1 Report Inventory 5 | . . . . . . . . . . . . 1 . . . . . . . . . 2 . 1 . 1 . . . . . . Retrieve Matter 1 | . . . . . . . . . . . . . . . . . . . . . . . . 1 . . . . . . . . Retrieve Components 1 | . . . . . . . . . . . . . . . . . . . . . . . . . . . . . . . . 1 Scanalyzer 70 | . . . . . 6 . 5 . . . . 16 . . . . 10 . . . . 2 . 6 . 12 5 . . 8 . . Insert Component 41 | . . . . . 4 . 1 . . . . 8 . . . . 5 . . . . 1 . 3 . 6 5 . . 8 . . Analyze 29 | . . . . . 2 . 4 . . . . 8 . . . . 5 . . . . 1 . 3 . 6 . . . . . . Garrison Access Hacks 15 | . . . . . . 1 2 . . . . . . . . . 2 . . . . 3 . 1 . 2 . . 1 1 2 . Seal Access 15 | . . . . . . 1 2 . . . . . . . . . 2 . . . . 3 . 1 . 2 . . 1 1 2 . Unauthorized Hacks 95 | . 6 . . . 3 5 4 . . . . 4 . . . . 8 . . . . 8 . 6 2 13 7 1 3 13 2 10 Terminals 76 | . 4 . . . 2 4 2 . . . . 3 . . . . 8 . . . . 7 . 3 2 9 7 . 3 13 1 8 Track 11 | . . . . . . 1 . . . . . . . . . . . . . . . 1 . . . 1 3 . . 4 . 1 Assimilate 17 | . 1 . . . . . . . . . . . . . . . 3 . . . . 1 . . 1 4 1 . 1 3 . 2 Botnet 35 | . 2 . . . 2 2 1 . . . . 2 . . . . 4 . . . . 4 . 3 1 3 2 . 2 3 1 3 Disrupt 3 | . . . . . . . . . . . . . . . . . . . . . . . . . . . . . . 2 . 1 Operators 10 | . 1 . . . . 1 1 . . . . 1 . . . . 1 . . . . 1 . . . 1 1 . . 1 . 1 Fabricators 7 | . . . . . . . 2 . . . . . . . . . . . . . . . . 2 . 3 . . . . . . Prioritize 7 | . . . . . . . 2 . . . . . . . . . . . . . . . . 2 . 3 . . . . . . Repair Stations . | . . . . . . . . . . . . . . . . . . . . . . . . . . . . . . . . . Recycling Units 10 | . 2 . . . 1 1 . . . . . 1 . . . . . . . . . 1 . 1 . 1 . . . . . 2 Reject 5 | . . . . . . . . . . . . 1 . . . . . . . . . 1 . 1 . 1 . . . . . 1 Mask 1 | . . . . . . . . . . . . . . . . . . . . . . . . . . . . . . . . 1 Tunnel 4 | . 2 . . . 1 1 . . . . . . . . . . . . . . . . . . . . . . . . . . Scanalyzers . | . . . . . . . . . . . . . . . . . . . . . . . . . . . . . . . . . Garrison Access 2 | . . . . . . . . . . . . . . . . . . . . . . . . . . . . 1 . . 1 . Jam 2 | . . . . . . . . . . . . . . . . . . . . . . . . . . . . 1 . . 1 . Data Cores Recovered 1 | . . . . . 1 . . . . . . . . . . . . . . . . . . . . . . . . . . . Used 1 | . . . . . 1 . . . . . . . . . . . . . . . . . . . . . . . . . . . Hacking Detections 169 | . 6 . . . 9 10 11 . . . . 8 . . . . 21 . . . . 18 . 12 2 17 9 2 8 13 11 12 Full Trace Events 28 | . . . . . 1 1 5 . . . . . . . . . 2 . . . . 5 . 4 1 3 2 . . 1 2 1 Feedback Events 3 | . . . . . . . 1 . . . . . . . . . . . . . . 1 . . . . 1 . . . . . Corruption 1 | . . . . . . . 1 . . . . . . . . . . . . . . . . . . . . . . . . . Hackware Fried 2 | . . . . . . . . . . . . . . . . . . . . . . 1 . . . . 1 . . . . . Feedback Blocked . | . . . . . . . . . . . . . . . . . . . . . . . . . . . . . . . . . Robot Schematics Acquired 12 | . . . . . . . . . . 4 . . . . 5 . . . . . . . . . . . . . 3 . . . Robots Built 6 | . . . . . . . . . . . . . . . . . 4 . . . . . . . . 2 . . . . . . Authchips . | . . . . . . . . . . . . . . . . . . . . . . . . . . . . . . . . . Time 109 | . . . . . . . . . . . . . . . . . 67 . . . . . . . . 42 . . . . . . Total Robot Build Rating 28 | . . . . . . . . . . . . . . . . . 16 . . . . . . . . 12 . . . . . . Part Schematics Acquired 63 | . 2 . . . 1 . 2 . . 14 . 7 . . 10 . 7 . . . . 3 . 3 . 5 . . 8 1 . . Parts Built 23 | . . . . . . . 6 . . . . 2 . . . . 5 . . . . 3 . 4 . 3 . . . . . . Authchips 2 | . . . . . . . . . . . . 1 . . . . 1 . . . . . . . . . . . . . . . Time 770 | . . . . . . . 159 . . . . 42 . . . . 172 . . . . 115 . 197 . 85 . . . . . . Total Part Build Rating 166 | . . . . . . . 36 . . . . 8 . . . . 35 . . . . 27 . 34 . 26 . . . . . . Parts Repaired 30 | . . . . . . . 2 . . . . 1 . . . . 4 . . . . 7 . 6 . 1 5 . 2 . 1 1 Time 1447 | . . . . . . . 70 . . . . 56 . . . . 151 . . . . 280 . 396 . 24 345 . 56 . 45 24 Parts Recycled . | . . . . . . . . . . . . . . . . . . . . . . . . . . . . . . . . . Recycled Matter . | . . . . . . . . . . . . . . . . . . . . . . . . . . . . . . . . . Retrieved Matter 126 | . . . . . . . . . . . . . . . . . . . . . . . . 126 . . . . . . . . Retrieved Components 10 | . . . . . . . . . . . . . . . . . . . . . . . . . . . . . . . . 10 Parts Scanalyzed 23 | . . . . . 2 . 1 . . . . 7 . . . . 4 . . . . 1 . 3 . 5 . . . . . . Part Schematics Acquired 20 | . . . . . 1 . 1 . . . . 7 . . . . 3 . . . . 1 . 3 . 4 . . . . . . Parts Damaged 5 | . . . . . . . . . . . . . . . . . 2 . . . . 1 . . . 2 . . . . . . Bothacking | -11 -10 -10 -10 -9 -8 -8 -7 -7 -7 -7 -6 -6 -6 -6 -6 -5 -5 -5 -5 -5 -4 -4 -4 -4 -4 -3 -3 -2 -2 -2 -1 -1 ------------ Run | Scr Mat Min Exi Min Mat Sto Fac Low Low Zio Pro Fac Low Low Dat Pro Fac Upp Upp War Pro Fac Was Fac Ext Res Qua Res Tes Sec Acc Com Used RIF Installer . | . . . . . . . . . . . . . . . . . . . . . . . . . . . . . . . . . Robots Hacked 5 | . . . 4 . . . . . . . . . . . 1 . . . . . . . . . . . . . . . . . Non-combat 3 | . . . 3 . . . . . . . . . . . . . . . . . . . . . . . . . . . . . Combat 2 | . . . 1 . . . . . . . . . . . 1 . . . . . . . . . . . . . . . . . Robot Hacks Applied 5 | . . . 4 . . . . . . . . . . . 1 . . . . . . . . . . . . . . . . . parse_system 5 | . . . 4 . . . . . . . . . . . 1 . . . . . . . . . . . . . . . . . Relay Couplers Released 7 | . . . . . . . . . . . . . . . . . 3 . . . . 3 . . . 1 . . . . . . Machine Destruction 7 | . . . . . . . . . . . . . . . . . 3 . . . . 3 . . . 1 . . . . . . Fabnet Peak Effective % . | . . . . . . . . . . . . . . . . . . . . . . . . . . . . . . . . . Robots Rewired 24 | . . . . . . . 1 . . . . . . . . . . . . 4 . . . . 19 . . . . . . . Allies Hacked 4 | . . . . . . . . . . . . . . . . . 1 . . . . . . . 2 . 1 . . . . . Hacks Repelled . | . . . . . . . . . . . . . . . . . . . . . . . . . . . . . . . . . Allies | -11 -10 -10 -10 -9 -8 -8 -7 -7 -7 -7 -6 -6 -6 -6 -6 -5 -5 -5 -5 -5 -4 -4 -4 -4 -4 -3 -3 -2 -2 -2 -1 -1 -------- Run | Scr Mat Min Exi Min Mat Sto Fac Low Low Zio Pro Fac Low Low Dat Pro Fac Upp Upp War Pro Fac Was Fac Ext Res Qua Res Tes Sec Acc Com Total Allies 80 | . . . . 5 . 10 1 . . . . . . . . 1 9 . . 4 . 4 . . 33 6 1 . 1 3 . 2 Largest Group 20 | . . . . 4 4 10 3 . . . . . . . . 1 4 1 . 4 1 3 . . 20 5 2 2 1 2 . 1 Highest-Rated Group 859 | . . . . 71 71 173 57 . . . . . . . . 96 119 10 . 204 65 138 . . 859 230 71 71 45 45 . 45 Highest-Rated Ally 159 | . . . . 31 31 29 25 . . . . . . . . 96 31 10 . 65 65 65 . . 159 54 45 45 45 45 . 45 Total Orders 44 | . . . . . . . 6 . . . 5 1 . . . . . . . . 2 3 . . 1 8 8 . 2 8 . . STAY 17 | . . . . . . . . . . . . . . . . . . . . . 1 2 . . 1 4 4 . 1 4 . . FOLLOW 15 | . . . . . . . . . . . . . . . . . . . . . 1 1 . . . 4 4 . 1 4 . . EXPLORE 11 | . . . . . . . 6 . . . 4 1 . . . . . . . . . . . . . . . . . . . . RETURN 1 | . . . . . . . . . . . 1 . . . . . . . . . . . . . . . . . . . . . Ally Attacks 454 | . . . . 10 48 37 4 . . . . . . . . 2 56 . . 10 . 24 . . 233 30 . . . . . . Total Damage 10449 | . . . . 103 630 503 59 . . . . . . . . 193 671 . . 309 . 536 . . 6640 805 . . . . . . Kills 73 | . . . . 2 10 4 1 . . . . . . . . 1 6 . . 2 . 1 . . 42 4 . . . . . . Allies Corrupted 2 | . . . . . . . . . . . . . . . . . . . . . . . . . . 1 . . . 1 . . Allies Melted 3 | . . . . . . . . . . . . . . . . . . . . . . . . . 3 . . . . . . . Intel | -11 -10 -10 -10 -9 -8 -8 -7 -7 -7 -7 -6 -6 -6 -6 -6 -5 -5 -5 -5 -5 -4 -4 -4 -4 -4 -3 -3 -2 -2 -2 -1 -1 ------- Run | Scr Mat Min Exi Min Mat Sto Fac Low Low Zio Pro Fac Low Low Dat Pro Fac Upp Upp War Pro Fac Was Fac Ext Res Qua Res Tes Sec Acc Com Robot Analysis Total 6 | . . . . . 2 . . . . . . . . . . . 2 . . . . 1 . . . 1 . . . . . . Derelict Logs Recovered 19 | . . 2 . 1 . . . 2 . 1 3 . 2 1 . 3 . 1 1 . 2 . . . . . . . . . . . Drone Launches 11 | . . . . . . . 6 . . 1 3 1 . . . . . . . . . . . . . . . . . . . . Drone Recoveries 5 | . . . . . . . 3 . . . 2 . . . . . . . . . . . . . . . . . . . . . Exploration | -11 -10 -10 -10 -9 -8 -8 -7 -7 -7 -7 -6 -6 -6 -6 -6 -5 -5 -5 -5 -5 -4 -4 -4 -4 -4 -3 -3 -2 -2 -2 -1 -1 ------------- Run | Scr Mat Min Exi Min Mat Sto Fac Low Low Zio Pro Fac Low Low Dat Pro Fac Upp Upp War Pro Fac Was Fac Ext Res Qua Res Tes Sec Acc Com Turns Passed 34922 | 58 1218 847 337 925 1672 1360 1993 1402 1187 1327 756 1014 1600 865 61 994 2211 757 520 461 680 1518 41 1803 1276 1643 1258 255 769 1656 1238 1220 Spaces Moved 36749 | 45 795 568 240 599 1144 826 1016 831 900 1041 579 1168 1615 1248 84 1257 2278 1098 802 571 924 1640 72 2204 1599 2013 1903 432 1242 2417 1896 1702 Core 1 | 1 . . . . . . . . . . . . . . . . . . . . . . . . . . . . . . . . Treads 702 | . . . . . . . 702 . . . . . . . . . . . . . . . . . . . . . . . . . Legs 1 | . . . . . . . . . . . . . . . . 1 . . . . . . . . . . . . . . . . Wheels 7936 | 44 795 568 240 599 1144 826 314 831 900 1041 579 55 . . . . . . . . . . . . . . . . . . . . Hover 28109 | . . . . . . . . . . . . 1113 1615 1248 84 1256 2278 1098 802 571 924 1640 72 2204 1599 2013 1903 432 1242 2417 1896 1702 Flight . | . . . . . . . . . . . . . . . . . . . . . . . . . . . . . . . . . Fastest Speed 33 | 50 100 115 115 130 105 105 120 125 125 125 125 64 64 64 64 60 56 56 56 55 55 43 43 36 36 38 40 43 36 36 33 33 Average Speed 66 | 98 121 121 135 144 105 113 146 155 125 125 125 68 64 64 64 63 59 56 56 56 55 51 43 42 41 40 42 44 37 36 33 33 Slowest Speed 385 | 100 130 125 145 145 111 120 385 160 125 125 125 125 64 64 64 260 134 56 56 124 55 55 43 118 42 46 48 138 43 36 36 144 Overloaded Moves . | . . . . . . . . . . . . . . . . . . . . . . . . . . . . . . . . . Propulsion Burnouts . | . . . . . . . . . . . . . . . . . . . . . . . . . . . . . . . . . Robots Hopped . | . . . . . . . . . . . . . . . . . . . . . . . . . . . . . . . . . Cave-ins Triggered . | . . . . . . . . . . . . . . . . . . . . . . . . . . . . . . . . . Teleports 1 | . . . . . . . . . . . . . . . . . . . . . . . . . . . . . . 1 . . Exploration Rate (%) 71 | 3 94 98 64 98 74 95 30 87 89 83 76 26 99 98 72 98 58 92 89 86 87 37 85 41 94 39 91 18 90 84 43 53 Regions Visited 32 Branch Regions 21 Pre-discovered Areas 14 | . 2 2 1 1 1 1 . . . 2 1 . 1 . 1 1 . . . . . . . . . . . . . . . . Known Exits Taken 22 | . 1 . . . 1 1 1 . . . . 1 1 1 1 1 1 1 1 1 1 . . 1 1 1 1 1 1 1 1 . Unknown Exits Taken 8 | 1 . 1 1 1 . . . 1 1 1 1 . . . . . . . . . . . . . . . . . . . . . Scrap Searched 37 | . . 1 . 2 . . . 10 3 4 1 . 2 3 . 2 . 4 2 . 3 . . . . . . . . . . . Spaces Dug 559 | . 11 15 . 1 6 5 20 4 4 . 3 14 41 11 . 11 48 11 12 1 16 44 . 72 3 53 32 6 12 26 50 27 Terrain Destroyed 824 | . 14 34 . 4 6 5 20 4 4 . 36 24 94 11 . 11 96 11 13 1 16 44 31 72 3 53 62 22 12 26 50 45 Melee 461 | . 11 2 . 1 6 5 20 4 4 . 3 14 41 11 . 9 47 11 11 1 13 41 . 38 3 44 24 6 12 17 38 24 Projectile 60 | . . . . . . . . . . . . . . . . 2 1 . 2 . 3 3 . 7 . 9 9 . . 9 12 3 AOE 303 | . 3 32 . 3 . . . . . . 33 10 53 . . . 48 . . . . . 31 27 . . 29 16 . . . 18 Terrain Rammed . | . . . . . . . . . . . . . . . . . . . . . . . . . . . . . . . . . Walls Destroyed . | . . . . . . . . . . . . . . . . . . . . . . . . . . . . . . . . . Machines Disabled . | . . . . . . . . . . . . . . . . . . . . . . . . . . . . . . . . . Actions | -11 -10 -10 -10 -9 -8 -8 -7 -7 -7 -7 -6 -6 -6 -6 -6 -5 -5 -5 -5 -5 -4 -4 -4 -4 -4 -3 -3 -2 -2 -2 -1 -1 --------- Run | Scr Mat Min Exi Min Mat Sto Fac Low Low Zio Pro Fac Low Low Dat Pro Fac Upp Upp War Pro Fac Was Fac Ext Res Qua Res Tes Sec Acc Com Total 44728 | 55 932 683 249 635 1475 1084 1347 903 933 1071 602 1321 2104 1296 88 1420 2992 1216 851 707 1056 2154 76 2961 2124 2642 2242 480 1496 3045 2333 2155 Wait 4873 | . 56 81 . 16 178 120 157 11 5 . 17 42 398 29 . 119 531 86 32 79 99 328 . 581 260 386 186 21 146 425 287 197 Move 36718 | 44 794 567 239 598 1143 825 1015 830 899 1040 578 1167 1614 1247 83 1256 2277 1097 801 570 923 1640 71 2203 1598 2012 1902 431 1241 2416 1895 1702 Hop . | . . . . . . . . . . . . . . . . . . . . . . . . . . . . . . . . . Pick Up 277 | 5 8 3 1 2 30 13 26 6 3 11 . 19 8 2 . 2 9 2 . 3 . 6 . 19 5 20 15 3 20 11 5 20 Fast Attach 153 | 6 3 . . 1 1 4 7 4 4 3 . 4 3 2 . 4 9 2 . 14 . 11 . 6 . 6 9 4 11 16 8 11 Attach 125 | . 2 2 . . 8 6 14 1 2 2 . 12 2 1 . . 6 1 . . . 4 . 3 6 5 4 2 3 9 2 28 Detach 39 | . 1 . . . 1 1 6 . . . . 1 . . . . 5 1 . 1 . 2 . 1 . 2 4 1 2 . . 10 Swap 563 | . 7 9 4 7 23 9 11 9 2 . 2 16 20 2 4 14 30 10 3 5 6 43 2 55 24 67 34 4 19 66 31 25 Drop 322 | . 2 . 1 2 24 15 17 9 4 13 . 16 11 2 . 7 15 3 . 19 . 10 . 22 2 20 24 6 29 16 12 21 Fire 154 | . 20 12 . 7 14 2 4 . . . 2 1 5 . 1 2 8 . 2 . 3 3 3 8 2 9 13 1 . 9 13 10 Melee 1308 | . 39 7 4 2 53 81 87 26 14 1 3 43 43 11 . 16 89 14 11 6 25 107 . 63 77 115 51 7 25 77 80 131 Ram 2 | . . 2 . . . . . . . . . . . . . . . . . . . . . . . . . . . . . . Kick . | . . . . . . . . . . . . . . . . . . . . . . . . . . . . . . . . . Crush . | . . . . . . . . . . . . . . . . . . . . . . . . . . . . . . . . . Escape Stasis 21 | . . . . . . 8 . . . . . . . . . . 13 . . . . . . . . . . . . . . . Rewire 163 | . . . . . . . 3 . . . . . . . . . . . . 10 . . . . 150 . . . . . . . Trap 9 | . . . . . . . . 7 . . . . . . . . . . 2 . . . . . . . . . . . . . Miscellaneous 1 | . . . . . . . . . . 1 . . . . . . . . . . . . . . . . . . . . . . Route ------- -11/Scrapyard -10/Materials (discovered 4 exits: [*Mat x3] / *Min) -10/Mines (discovered 3 exits: [*Mat x2] / *Exi) -10/Exiles -9/Mines (discovered 2 exits: *Mat x2) -8/Materials (discovered 3 exits: *Fac x2 / *Sto) -8/Storage -7/Factory (discovered 4 exits: *Fac x2 / *Low x2) -7/Lower Caves -7/Lower Caves (discovered 2 exits: *Fac / [*Zio]) -7/Zion -6/Proximity Caves -6/Factory (discovered 3 exits: *Fac / *Low x2) -6/Lower Caves -6/Lower Caves -6/Data Miner -5/Proximity Caves -5/Factory (discovered 6 exits: *Fac x4 / *Upp x2) -5/Upper Caves -5/Upper Caves (discovered 2 exits: *Fac / *War) -5/Warlord -4/Proximity Caves -4/Factory (discovered 6 exits: *Res / *Upp x2 / Ext x2 / Arm) -4/Waste -4/Factory (discovered 8 exits: *Res x3 / *Upp x2 / *Ext x2 / Arm) -4/Extension (discovered 3 exits: *Res x2 / *Cet) -3/Research (discovered 3 exits: *Res / *Qua x2) -3/Quarantine -2/Research (discovered 3 exits: Acc / *Tes x2) -2/Testing (discovered 2 exits: *Acc / *Sec) -2/Section 7 -1/Access -1/Command History --------- Turn | Location | Event 17 | -11/Scrapyard | Discovered new exit (range 15) 59 | -11/Scrapyard | Entered Materials 163 | -10/Materials | Discovered new exit (range 5) 308 | -10/Materials | Build established: Mutant 496 | -10/Materials | Discovered new exit (range 12) 674 | -10/Materials | Identified exit to Mines 674 | -10/Materials | Discovered new exit (range 9) 826 | -10/Materials | Discovered new exit (range 3) 1277 | -10/Materials | Entered Mines 1284 | -10/Mines | Received a Rocket Launcher from a helpful Derelict 1536 | -10/Mines | Learned location of Storage (-8) 1562 | -10/Mines | Deemed a non-threat by the Exiles lab entrance 1562 | -10/Mines | Discovered new exit (range 6) 1599 | -10/Mines | Learned location of Zion (-7) 1804 | -10/Mines | Learned Materials terminal intel 1807 | -10/Mines | Discovered new exit (range 8) 1854 | -10/Mines | Discovered new exit (range 10) 2124 | -10/Mines | Entered Exiles 2155 | -10/Exiles | Met 8R-AWN 2175 | -10/Exiles | Met EX-HEX 2243 | -10/Exiles | Met EX-DEC 2308 | -10/Exiles | Met EX-BIN 2444 | -10/Exiles | Discovered new exit (range 10) 2461 | -10/Exiles | Entered Mines 2539 | -9/Mines | Discovered new exit (range 11) 2646 | -9/Mines | Discovered new exit (range 12) 2877 | -9/Mines | Core integrity fell below 50% 3263 | -9/Mines | Assisted by bots powering up and referring to "LRC-V3" 3386 | -9/Mines | Entered Materials 3386 | -8/Materials | Accompanied by 4 allies 3386 | -8/Materials | Evolved 4 slots: Propulsion x2, Utility x2 3387 | -8/Materials | Loaded intel: 12 terminal locations 3391 | -8/Materials | Led the pair of lost Derelicts to an unsafe place 3787 | -8/Materials | Discovered new exit (range 12) 3797 | -8/Materials | Identified exit to Factory 3923 | -8/Materials | Discovered new exit (range 4) 3974 | -8/Materials | Lost 3 parts (1n2u) 4134 | -8/Materials | Discovered exit to Factory (range 11) 4703 | -8/Materials | Identified exit to Storage 5058 | -8/Materials | Entered Storage 5843 | -8/Storage | Core integrity fell below 50% 6130 | -8/Storage | Assisted by bots powering up and referring to "LRC-V3" 6258 | -8/Storage | First assault squad dispatched 6364 | -8/Storage | Discovered exit to Factory (range 16) 6372 | -8/Storage | Door terminal overloaded 6418 | -8/Storage | Entered Factory 6418 | -7/Factory | Accompanied by 2 allies 6418 | -7/Factory | Evolved 2 slots: Utility x1, Weapon x1 6418 | -7/Factory | Discovered new exit (range 12) 6433 | -7/Factory | Identified exit to Lower Caves 6574 | -7/Factory | Discovered new exit (range 21) 6812 | -7/Factory | Fabricated Cmb. Gravmag System? 6850 | -7/Factory | Build established: Hacker-Mutant 6891 | -7/Factory | Lost 6 parts (1p4n1u) 8044 | -7/Factory | Fabricated Cmb. Gravmag System? 8112 | -7/Factory | Discovered new exit (range 14) 8125 | -7/Factory | Repaired Maul? 8194 | -7/Factory | Fabricated Cmb. Gravmag System? 8213 | -7/Factory | Lost 3 parts (2n1u) 8324 | -7/Factory | Repaired Hvy. Mace 8411 | -7/Factory | Entered Lower Caves 8449 | -7/Lower Caves | Encountered a Warlord checkpoint 8460 | -7/Lower Caves | Build established: Mutant 9297 | -7/Lower Caves | System corruption reached 10% 9328 | -7/Lower Caves | Core integrity fell below 50% 9419 | -7/Lower Caves | Learned Factory terminal intel 9628 | -7/Lower Caves | Discovered new exit (range 10) 9813 | -7/Lower Caves | Entered another Lower Caves area 9969 | -7/Lower Caves | Build established: Derelict-Mutant 10124 | -7/Lower Caves | Discovered new exit (range 14) 10837 | -7/Lower Caves | Discovered new exit (range 10) 11000 | -7/Lower Caves | Entered Zion 11069 | -7/Zion | System corruption cleaned by Quarantine Array 11147 | -7/Zion | Learned location of Quarantine (-3) 11338 | -7/Zion | Found Prototype Processor 11340 | -7/Zion | Found Prototype Processor 11372 | -7/Zion | Identified Exp. Terrain Scan Processor 11386 | -7/Zion | Found Exp. Targeting Computer 11406 | -7/Zion | Identified Exp. Melee Analysis Suite 11495 | -7/Zion | Found CR-A16's Pointy Stick 11566 | -7/Zion | Learned Factory emergency access door positions 11676 | -7/Zion | Learned Factory emergency access door positions 11801 | -7/Zion | Learned location of Armory (-4) 12068 | -7/Zion | Discovered new exit (range 12) 12158 | -7/Zion | Found GAL Module 12327 | -7/Zion | Entered Proximity Caves 12327 | -6/Proximity Caves | Accompanied by 1 ally 12384 | -6/Proximity Caves | Learned Factory terminal intel 12535 | -6/Proximity Caves | Spotted B-75 Beast 12760 | -6/Proximity Caves | Discovered new exit (range 48) 13065 | -6/Proximity Caves | Learned location of 1 exit from Factory 13083 | -6/Proximity Caves | Entered Factory 13083 | -6/Factory | Evolved 2 slots: Propulsion x1, Utility x1 13084 | -6/Factory | Identified exit to Lower Caves 13087 | -6/Factory | Loaded intel: 24 terminal locations 13400 | -6/Factory | Fabricated Microactuators? 13479 | -6/Factory | Build established: Machinist-Mutant 13814 | -6/Factory | Discovered new exit (range 7) 13819 | -6/Factory | Identified exit to Factory 14013 | -6/Factory | Repaired Cmb. Gravmag System? 14097 | -6/Factory | Entered Lower Caves 14491 | -6/Lower Caves | Attracted the attention of an 0b10 checkpoint 14766 | -6/Lower Caves | Build established: Machinist-Scout 14848 | -6/Lower Caves | Encountered a Warlord checkpoint 15239 | -6/Lower Caves | Spotted B-75 Beast 15336 | -6/Lower Caves | Destroyed B-75 Beast 15439 | -6/Lower Caves | Discovered new exit (range 11) 15444 | -6/Lower Caves | Identified exit to Lower Caves 15697 | -6/Lower Caves | Entered another Lower Caves area 15740 | -6/Lower Caves | Learned location of 1 exit from Factory 16357 | -6/Lower Caves | Found Alien Artifact 16357 | -6/Lower Caves | Identified Core Expander 16357 | -6/Lower Caves | Installed Core Expander, added new Propulsion slot 16520 | -6/Lower Caves | Discovered new exit (range 6) 16523 | -6/Lower Caves | Identified exit to Data Miner 16562 | -6/Lower Caves | Entered Data Miner 16562 | -6/Data Miner | Discovered new exit (range 6) 16575 | -6/Data Miner | Met Data Miner 16596 | -6/Data Miner | Learned location of Section 7 (-2) 16596 | -6/Data Miner | Acquired the access code to Warlord's prototype stash 16607 | -6/Data Miner | Received God Mode back door access code from Data Miner 16621 | -6/Data Miner | Identified exit to Proximity Caves 16623 | -6/Data Miner | Entered Proximity Caves 16744 | -5/Proximity Caves | Escorted by Enhanced Grunt 16797 | -5/Proximity Caves | Found Prototype Device 16797 | -5/Proximity Caves | Identified Exp. Thermal Shield 16820 | -5/Proximity Caves | Learned 4 Factory zone layouts 16903 | -5/Proximity Caves | Spotted B-75 Beast 17199 | -5/Proximity Caves | Revealed the true nature of CR-A16's Pointy Stick 17201 | -5/Proximity Caves | Destroyed B-75 Beast 17454 | -5/Proximity Caves | Learned 4 Factory zone layouts 17569 | -5/Proximity Caves | Discovered exit to Factory (range 12) 17617 | -5/Proximity Caves | Entered Factory 17617 | -5/Factory | Evolved 2 slots: Power x1, Utility x1 17618 | -5/Factory | Identified exit to Upper Caves 17619 | -5/Factory | Identified exit to Factory 17622 | -5/Factory | Loaded intel: 26 terminal locations 17726 | -5/Factory | Fabricated Lgt. Regenerative Plating? 17910 | -5/Factory | Build established: Hacker-Mutant 18158 | -5/Factory | Found Antimissile System 18171 | -5/Factory | Central database locked down 18189 | -5/Factory | Fabricated Quantum Reactor? 18261 | -5/Factory | Discovered exit to Upper Caves (range 15) 18528 | -5/Factory | Repaired Broken Ionic Axe? 18568 | -5/Factory | Repaired Cmb. Gravmag System 18615 | -5/Factory | Repaired Broken Adv. System Restoration Module 18742 | -5/Factory | Spotted B-75 Beast 19019 | -5/Factory | Fabricated S-27 Virus (x4) 19046 | -5/Factory | Incoming investigation squad redirected 19075 | -5/Factory | Fabricated Cmb. Gravmag System? 19096 | -5/Factory | Discovered exit to Factory (range 4) 19257 | -5/Factory | Allied Derelicts emerged from ambush trap array 19364 | -5/Factory | Discovered exit to Factory (range 15) 19451 | -5/Factory | Repaired Cmb. Gravmag System 19473 | -5/Factory | Discovered exit to Factory (range 14) 19560 | -5/Factory | Build established: Machinist-Mutant 19828 | -5/Factory | Entered Upper Caves 19828 | -5/Upper Caves | Accompanied by 1 ally 20135 | -5/Upper Caves | Discovered new exit (range 15) 20137 | -5/Upper Caves | Build established: Machinist-Scout 20145 | -5/Upper Caves | Identified exit to Upper Caves 20470 | -5/Upper Caves | Learned 4 Factory zone layouts 20585 | -5/Upper Caves | Entered another Upper Caves area 20617 | -5/Upper Caves | Discovered exit to Factory (range 6) 20623 | -5/Upper Caves | Identified exit to Warlord 20662 | -5/Upper Caves | Spotted B-75 Beast 21105 | -5/Upper Caves | Entered Warlord 21116 | -5/Warlord | Discovered new exit (range 20) 21219 | -5/Warlord | Found Prototype Device 21354 | -5/Warlord | Met Warlord 21359 | -5/Warlord | Opened Warlord's prototype stash 21363 | -5/Warlord | Found Prototype Device 21363 | -5/Warlord | Identified Exp. Focal Shield 21379 | -5/Warlord | Warlord's base attacked by MAIN.C 21385 | -5/Warlord | Identified Minesniffer Drone Bay 21391 | -5/Warlord | Found Prototype Reactor 21391 | -5/Warlord | Identified Vortex Chain Reactor 21515 | -5/Warlord | Opened side exit 21565 | -5/Warlord | Identified exit to Proximity Caves 21566 | -5/Warlord | Entered Proximity Caves 21566 | -4/Proximity Caves | Accompanied by 1 ally 21750 | -4/Proximity Caves | Learned Research terminal intel 22246 | -4/Proximity Caves | Entered Factory 22246 | -4/Factory | Accompanied by 1 ally 22246 | -4/Factory | Evolved 2 slots: Utility x2 22534 | -4/Factory | Repaired Cmb. Gravmag System 22560 | -4/Factory | Repaired Imp. Actuator Array 22598 | -4/Factory | Repaired Quantum Reactor 22652 | -4/Factory | Identified exit to Upper Caves 22652 | -4/Factory | Identified exit to Extension 22652 | -4/Factory | Identified exit to Armory 22791 | -4/Factory | Spotted B-86 Titan 22820 | -4/Factory | Incoming investigation squad redirected 22831 | -4/Factory | Incoming investigation squad redirected 22870 | -4/Factory | Fabricated Enh. Nova Cannon? 22893 | -4/Factory | Repaired Broken Cmb. Gravmag System? 23291 | -4/Factory | Allied Derelicts emerged from ambush trap array 23292 | -4/Factory | Discovered new exit (range 13) 23298 | -4/Factory | Identified exit to Research 23330 | -4/Factory | Repaired Power Sword 23387 | -4/Factory | Repaired Cmb. Gravmag System 23491 | -4/Factory | Spotted B-86 Titan 23595 | -4/Factory | Adv. Hacking Suite fried by hacking feedback 23605 | -4/Factory | Incoming investigation squad redirected 23613 | -4/Factory | Cargo convoy interrupted 23614 | -4/Factory | Incoming investigation squad redirected 23629 | -4/Factory | Fabricated Cmb. Linear Gravjet? 23640 | -4/Factory | Repaired Broken Exp. Focal Shield? 23642 | -4/Factory | Incoming assault squad redirected 23764 | -4/Factory | Sucked down chute 23764 | -4/Factory | Entered Waste 23768 | -4/Waste | Spotted C-40 Crusher 23773 | -4/Waste | Spotted C-40 Crusher 23789 | -4/Waste | Spotted C-40 Crusher 23790 | -4/Waste | Spotted C-40 Crusher 23797 | -4/Waste | Spotted C-40 Crusher 23798 | -4/Waste | Spotted C-40 Crusher 23801 | -4/Waste | Discovered new exit (range 10) 23804 | -4/Waste | Identified exit to Factory 23805 | -4/Waste | Entered Factory 23963 | -4/Factory | Incoming investigation squad redirected 24003 | -4/Factory | Fabricated Com. HERF Cannon (x1) 24055 | -4/Factory | Repaired Quantum Reactor 24145 | -4/Factory | Repaired Ionic Axe 24203 | -4/Factory | Repaired Adv. System Restoration Module? 24297 | -4/Factory | Fabricated Com. HERF Cannon (x1) 24521 | -4/Factory | Repaired Microactuators 24631 | -4/Factory | Repaired Cld. Antigrav System? 24793 | -4/Factory | Discovered exit to Research (range 18) 24908 | -4/Factory | Incoming investigation squad redirected 24959 | -4/Factory | Discovered exit to Research (range 16) 24986 | -4/Factory | Repaired Lrn. Missile Launcher? 25063 | -4/Factory | Incoming investigation squad redirected 25105 | -4/Factory | Fabricated Cmb. Linear Gravjet (x2) 25207 | -4/Factory | Discovered exit to Upper Caves (range 13) 25346 | -4/Factory | Build established: Hacker-Scout 25509 | -4/Factory | Discovered exit to Research (range 16) 25608 | -4/Factory | Entered Extension 25751 | -4/Extension | Rescued a captive Derelict 25751 | -4/Extension | Rescued a captive Derelict 25768 | -4/Extension | Rescued a captive Derelict 26010 | -4/Extension | Rescued a captive Derelict 26011 | -4/Extension | Rescued a captive Derelict 26027 | -4/Extension | Rescued a captive Derelict 26085 | -4/Extension | P-70 Sage assimilated allied MX-MII(g) 26108 | -4/Extension | First assault squad dispatched 26195 | -4/Extension | Build established: Commander-Mutant 26326 | -4/Extension | Spotted B-86 Titan 26330 | -4/Extension | Destroyed B-86 Titan 26361 | -4/Extension | Spotted B-86 Titan 26366 | -4/Extension | Discovered exit to Research (range 3) 26368 | -4/Extension | Destroyed B-86 Titan 26375 | -4/Extension | Incoming assault squad redirected 26381 | -4/Extension | Incoming assault squad redirected 26389 | -4/Extension | Rescued a captive Derelict 26390 | -4/Extension | Rescued a captive Derelict 26452 | -4/Extension | Energy Cycler disabled 26455 | -4/Extension | Rescued a captive Derelict 26456 | -4/Extension | Rescued a captive Derelict 26457 | -4/Extension | Rescued a captive Derelict 26458 | -4/Extension | Rescued a captive Derelict 26463 | -4/Extension | Rescued A7 26641 | -4/Extension | Extracted ID and sensor layout for unrecognized location from A7's data core 26698 | -4/Extension | Core integrity fell below 50% 26809 | -4/Extension | Discovered exit to Research (range 10) 26810 | -4/Extension | Discovered new exit (range 6) 26817 | -4/Extension | Identified exit to Cetus 26884 | -4/Extension | Entered Research 26884 | -3/Research | Accompanied by 4 allies 26884 | -3/Research | Evolved 2 slots: Utility x2 26885 | -3/Research | Loaded intel: 25 terminal locations 26961 | -3/Research | Identified exit to Quarantine 27096 | -3/Research | Repaired Cmb. Linear Gravjet 27365 | -3/Research | Fabricated Cmb. Linear Gravjet? 27383 | -3/Research | Incoming investigation squad redirected 27412 | -3/Research | Fabricated Exp. Terrain Scanner (x1) 27508 | -3/Research | Fabricated P-70 Sage (x2) 27520 | -3/Research | Found Antimissile System 27727 | -3/Research | Found Prototype Slashing Weapon 27730 | -3/Research | Found Prototype Slashing Weapon 27733 | -3/Research | Identified Nanosword (x2) 28158 | -3/Research | Discovered new exit (range 26) 28181 | -3/Research | Found Prototype Processor 28191 | -3/Research | Identified Spectral Analyzer 28484 | -3/Research | Found Antimissile System 28527 | -3/Research | Entered Quarantine 28527 | -3/Quarantine | Accompanied by 1 ally 28581 | -3/Quarantine | Build established: Hacker-Scout 28693 | -3/Quarantine | Found Alien Artifact 28721 | -3/Quarantine | Repaired Broken Nanoactuators 28795 | -3/Quarantine | Repaired Cmb. Linear Gravjet 28854 | -3/Quarantine | Identified Terrabomb 28871 | -3/Quarantine | Repaired Cmb. Linear Gravjet? 28891 | -3/Quarantine | Discovered new exit (range 23) 28905 | -3/Quarantine | Found Alien Artifact 28914 | -3/Quarantine | Found Alien Artifact 28947 | -3/Quarantine | Identified Hpw. Transdimensional Reconstructor 28947 | -3/Quarantine | Identified Subatomic Replicator 29001 | -3/Quarantine | Repaired Cmb. Linear Gravjet? 29014 | -3/Quarantine | Found Alien Artifact 29029 | -3/Quarantine | Found Alien Artifact 29034 | -3/Quarantine | Identified Phase Redirector 29049 | -3/Quarantine | Identified Dimensional Node Initializer 29107 | -3/Quarantine | Found Alien Slashing Weapon 29107 | -3/Quarantine | Identified Sigix Broadsword 29342 | -3/Quarantine | Repaired Cmb. Linear Gravjet? 29522 | -3/Quarantine | Found Alien Artifact 29540 | -3/Quarantine | Found Alien Reactor 29540 | -3/Quarantine | Identified Matter Drive 29551 | -3/Quarantine | Incoming investigation squad redirected 29648 | -3/Quarantine | Identified Core Reset Matrix 29678 | -3/Quarantine | Found Alien Impact Weapon 29682 | -3/Quarantine | Identified Core Stripper 29719 | -3/Quarantine | Adv. System Shield fried by hacking feedback 29780 | -3/Quarantine | Identified exit to Research 29785 | -3/Quarantine | Entered Research 29785 | -2/Research | Accompanied by 2 allies 29785 | -2/Research | Warlord forces began assault on 0b10 29785 | -2/Research | Evolved 2 slots: Utility x1, Weapon x1 29794 | -2/Research | Identified exit to Testing 29894 | -2/Research | Found Prototype Launcher 29895 | -2/Research | Research machine network offline 29897 | -2/Research | Identified Hellfire Missile Launcher 29964 | -2/Research | Met up with Warlord 30019 | -2/Research | Discovered new exit (range 13) 30040 | -2/Research | Entered Testing 30059 | -2/Testing | Found Prototype Device 30076 | -2/Testing | Identified AEGIS Remote Shield 30078 | -2/Testing | Found System Mapper 30107 | -2/Testing | Found Ghost Barrier 30126 | -2/Testing | Build established: Machinist-Scout 30267 | -2/Testing | Found Prototype Processor 30297 | -2/Testing | Identified Exp. Signal Interpreter 30300 | -2/Testing | Found Exp. Signal Interpreter 30384 | -2/Testing | Found Prototype Energy Gun 30384 | -2/Testing | Identified Tachyon Dispersion Ray 30403 | -2/Testing | Discovered new exit (range 30) 30428 | -2/Testing | Repaired Adv. Reaction Control System 30465 | -2/Testing | Repaired Exp. Coolant Injector 30591 | -2/Testing | Found Prototype Energy Cannon 30591 | -2/Testing | Identified Imp. Potential Cannon 30632 | -2/Testing | Found Exp. Melee Analysis Suite 30753 | -2/Testing | Spotted Fortress 30758 | -2/Testing | Destroyed Fortress 30765 | -2/Testing | Found Prototype Device 30765 | -2/Testing | Identified Exp. Force Field 30767 | -2/Testing | Found Prototype Device 30767 | -2/Testing | Identified Exp. EM Disruption Field 30770 | -2/Testing | Found Prototype Device 30770 | -2/Testing | Identified Thermal Barrier 30804 | -2/Testing | Discovered new exit (range 5) 30805 | -2/Testing | Identified exit to Section 7 30809 | -2/Testing | Entered Section 7 30999 | -2/Section 7 | Found Alien Artifact 31049 | -2/Section 7 | Identified Integrity Redistributor 31054 | -2/Section 7 | Discovered new exit (range 28) 31067 | -2/Section 7 | Initialized slip node 31080 | -2/Section 7 | Found Alien Artifact 31119 | -2/Section 7 | Identified Integrated Reactor 31119 | -2/Section 7 | Installed Integrated Reactor, increased core energy generation (+10) 31356 | -2/Section 7 | Build established: Hacker-Scout 31427 | -2/Section 7 | Found Alien Artifact 31455 | -2/Section 7 | Identified Integrated Mediator 31455 | -2/Section 7 | Installed Integrated Mediator, increased core attachment efficiency. 31480 | -2/Section 7 | Spotted S7 Guard 31494 | -2/Section 7 | Destroyed S7 Guard 31504 | -2/Section 7 | Found Alien Artifact 31638 | -2/Section 7 | Found Integrated Reactor 31638 | -2/Section 7 | Installed Integrated Reactor, increased core energy generation (+10) 31837 | -2/Section 7 | Identified Integrated Thermoelectric Network 31837 | -2/Section 7 | Installed Integrated Thermoelectric Network, gained heat-energy exchange potential 31876 | -2/Section 7 | Spotted B-99 Colossus 31891 | -2/Section 7 | Found Alien Artifact 31903 | -2/Section 7 | Found Alien Artifact 31906 | -2/Section 7 | Found Alien Artifact 31922 | -2/Section 7 | Warped through subspace to slip node 31936 | -2/Section 7 | Identified Integrated Dissipator 31936 | -2/Section 7 | Identified LRC Boosters 31936 | -2/Section 7 | Installed Integrated Dissipator, increased core heat dissipation (+20) 32070 | -2/Section 7 | Identified LRC Insulator 32070 | -2/Section 7 | Installed LRC Insulator, gained EM resistance (25) 32120 | -2/Section 7 | Found Alien Artifact 32122 | -2/Section 7 | Found Alien Artifact 32137 | -2/Section 7 | Spotted Executioner 32146 | -2/Section 7 | Spotted Executioner 32147 | -2/Section 7 | Destroyed Executioner 32162 | -2/Section 7 | Destroyed Executioner 32186 | -2/Section 7 | Found Prototype Device 32186 | -2/Section 7 | Identified Adv. Kinecellerator 32225 | -2/Section 7 | Found Integrated Dissipator 32225 | -2/Section 7 | Installed Integrated Dissipator, increased core heat dissipation (+20) 32227 | -2/Section 7 | Found Integrated Dissipator 32227 | -2/Section 7 | Installed Integrated Dissipator, increased core heat dissipation (+20) 32259 | -2/Section 7 | Installed LRC Boosters, increased mass support (+10) 32349 | -2/Section 7 | Found Matter Drive 32353 | -2/Section 7 | Found Alien Energy Cannon 32353 | -2/Section 7 | Identified Drained L-Cannon 32399 | -2/Section 7 | Identified Transdimensional Reconstructor (x2) 32463 | -2/Section 7 | Identified exit to Access 32465 | -2/Section 7 | Entered Access 32465 | -1/Access | Evolved 2 slots: Propulsion x1, Utility x1 32549 | -1/Access | Incoming investigation squad redirected 32763 | -1/Access | Build established: Machinist-Scout 33212 | -1/Access | Found Antimissile System 33407 | -1/Access | Spotted B-99 Colossus 33620 | -1/Access | Repaired Broken Exp. EM Disruption Field? 33628 | -1/Access | Discovered new exit (range 21) 33702 | -1/Access | Identified exit to Command 33703 | -1/Access | Entered Command 33729 | -1/Command | Spotted B-99 Colossus 33952 | -1/Command | Disengaged cave seal 33953 | -1/Command | Welcomed Warlord to Command 33991 | -1/Command | Build established: Hacker-Sprinter 33994 | -1/Command | Repaired Cmb. Linear Gravjet 34290 | -1/Command | Destroyed B-99 Colossus 34315 | -1/Command | Destroyed 10 combat bots 34430 | -1/Command | Spotted M Guard 34430 | -1/Command | Spotted M Guard 34430 | -1/Command | Spotted Combat Programmer 34430 | -1/Command | Spotted Combat Programmer 34491 | -1/Command | Destroyed Combat Programmer 34494 | -1/Command | Destroyed Combat Programmer 34501 | -1/Command | Found Prototype Energy Cannon 34501 | -1/Command | Identified EMDS 34518 | -1/Command | Destroyed M Guard 34540 | -1/Command | Destroyed M Guard 34540 | -1/Command | All MAIN.C guards destroyed 34557 | -1/Command | Found Prototype Reactor 34557 | -1/Command | Identified Zero-point Reactor 34568 | -1/Command | Warlord commented on Warlord statues 34605 | -1/Command | Used Subatomic Replicator to replicate Sigix Broadsword 34672 | -1/Command | Met MAIN.C 34702 | -1/Command | Warlord shut down involuntarily 34731 | -1/Command | First assault squad dispatched 34799 | -1/Command | Destroyed MAIN.C Shell 34802 | -1/Command | MAIN.C activated Command garrisons 34847 | -1/Command | 0b10 Conduit disabled 34864 | -1/Command | System corruption reached 10% 34879 | -1/Command | Used Integrity Redistributor, redistributed integrity from core (-233) 34881 | -1/Command | Core integrity fell below 50% 34881 | -1/Command | Spotted B-99 Colossus 34908 | -1/Command | Lost 14 parts (1p3n8u2w) 34916 | -1/Command | Core integrity fell below 20% 34923 | -1/Command | Destroyed by MAIN.C with Improved Heavy Machine Gun Last Messages --------------- 34914_ Slug penetrates B-99 Colossus. 34914_ Cmb. Linear Gravjet destroyed. 34914_ Knocked back. 34915_ Acquired 12 matter. 34915_ Hellfire Missile intercepted. 34917_ S-43 Plague destroyed. 34917_ L-61 Swordsman destroyed. 34917_ S-43 Plague destroyed. 34917_ P-80 Master destroyed. 34917_ Critical hit (Destroy). 34917_ Hellfire Missile Launcher destroyed. 34917_ Penetrated by Slug. 34918_ S-43 Plague destroyed. 34919_ X-87 Electro suffers critical hit (Burn). 34919_ G-73 Enforcer suffers critical hit (Destroy). 34919_ Exp. Coolant Injector destroyed. 34919_ Knocked back. 34920_ Slug penetrates X-87 Electro. 34920_ P-80 Master resets S-43 Plague, system corruption cleaned. 34922_ Critical hit (Burn: +37). Map ----- +----------------------------------------------------+ | ????????# % # ##### """""""""" " #???? | | ????????#=== # #???# " """ " """"""""#???? | | ????????#== # #???# """ " " " ????? | | ????????#== # #???######################????? | | ????????# # #?????????????????????????????? | | #???????##"""## #?????????????????????????????? | | #???????# ===## #?????????????????????????????? | | #???????# ===## #?????????????????????????????? | | +???????#%===## #?????????????????????????????? | | #???????# ## #?????????????????????????????? | | #???????# *## #?????????????????????????????? | | #########"+"### #?????????????????????????????? | | # " ##????????????????????????????? | | # # "#???????????????????????????? | | # # ""#???????????????????????????? | | # # !=! ""#???????????????????????????? | | "+% =!! ""#???????????????????????????? | | # =! ""#???????????????????????????? | | # "%= T"#???????????????????????????? | | # /%! "#???????????????????????????? | | =% + = ""#???????????????????????????? | | |%= # ""#???????????????????????????? | | * ## *%""#???????????????????????????? | | %| ####### "#???????????????????????????? | | ![ ## # gM%%h #######?????????????????????? | | m g! sh=xs @ #?????????????????????? | | Y hp =pg=l % #?????????????????????? | | # #### BB ####"""##?????????????????????? | | # "##+#"#"##; " #??????????????????????????????? | | *%! "###??????????????????????????????? | | % = ##????????????????????????????????? | | #?????????????????????????????????? | | % #?????????????????????????????????? | | #?????????????????????????????????? | | #?????????????????????????????????? | | #?????????????????????????????????? | | #?????????????????????????????????? | | #?????????????????????????????????? | | # """T"""" ####?????????????????????????????????? | | # """"""""""#????????????????????????????????????? | | #############????????????????????????????????????? | | ?????????????????????????????????????????????????? | | ?????????????????????????????????????????????????? | | ?????????????????????????????????????????????????? | | ?????????????????????????????????????????????????? | | ?????????????????????????????????????????????????? | | ?????????????????????????????????????????????????? | | ?????????????????????????????????????????????????? | | ?????????????????????????????????????????????????? | | ?????????????????????????????????????????????????? | +----------------------------------------------------+ Best States ------------- Heat Dissipation 202 Coolant Potential 120 Energy Generation 75 Energy Capacity 1295 Matter Stores 300 Matter Capacity 300 Sight Range 24 Robot Scan Range 18 Terrain Scan Range 30 Terrain Scan Density 1010 Armor Coverage 750 Resistance: KI 30 Resistance: TH 30 Resistance: EM 100 Point Defense Rating 240 Melee Speed Boost 30 Phase Shifting 15 Evasion (%) 85 Targeting Accuracy 6 Melee Accuracy 24 Armor Integrity Analysis 40 Recoil Reduction 4 Offensive Hacking 34 Defensive Hacking 24 Authchip Count 2 Item Schematics ----------------- Hcp. Storage Unit | -10/Materials | Hacked Huge Storage Unit | -10/Materials | Hacked Hvy. Particle Gun | -8/Materials | Scanalyzed Cmb. Gravmag System | -7/Factory | Hacked Microactuators | -7/Factory | Scanalyzed Mak. Leg | -7/Zion | Archive Thermic Laser | -7/Zion | Archive Lightning Gun | -7/Zion | Archive Adv. Plasma Cannon | -7/Zion | Archive Mak. Hacking Suite | -7/Zion | Archive Power Sword | -7/Zion | Archive Fission Core | -7/Zion | Archive Proton Cannon | -7/Zion | Archive Hvy. Laser | -7/Zion | Archive Imp. Component Analysis Suite | -7/Zion | Archive Flexi-carbon Leg | -7/Zion | Archive Component Analysis Suite | -7/Zion | Archive Armor Integrity Analyzer | -7/Zion | Archive Enh. Optical Array | -7/Zion | Archive Exp. Melee Analysis Suite | -6/Factory | Scanalyzed Mak. Axe | -6/Factory | Scanalyzed Exp. Terrain Scan Processor | -6/Factory | Scanalyzed Adv. Sensor Array | -6/Factory | Scanalyzed Exp. Targeting Computer | -6/Factory | Scanalyzed Hacking Suite | -6/Factory | Scanalyzed Mic. Nuclear Core | -6/Factory | Scanalyzed Combat Drone Bay | -6/Data Miner | Free Lgt. Regenerative Plating | -6/Data Miner | Free Enh. Armored Leg | -6/Data Miner | Free Imp. Matter Compressor | -6/Data Miner | Free Hvy. Gatling Laser | -6/Data Miner | Free Adv. Medium Treads | -6/Data Miner | Free Adv. Power Amplifier | -6/Data Miner | Free HERF Cannon | -6/Data Miner | Free Force Lance | -6/Data Miner | Free Nova Cannon | -6/Data Miner | Free Ionic Axe | -5/Factory | Scanalyzed Adv. Hacking Suite | -5/Factory | Scanalyzed Adv. System Restoration Module | -5/Factory | Scanalyzed Com. HERF Cannon | -5/Factory | Hacked Exp. Terrain Scanner | -5/Factory | Hacked Enh. Gauss Cannon | -5/Factory | Hacked Adv. Force Field | -5/Factory | Hacked Adv. Energy Well | -4/Factory | Hacked Exp. Focal Shield | -4/Factory | Scanalyzed Cmb. Linear Gravjet | -4/Factory | Hacked Nanoactuators | -4/Factory | Scanalyzed Imp. Actuator Array | -4/Factory | Scanalyzed Lgt. Neutrino Core | -4/Factory | Scanalyzed Nanosword | -3/Research | Scanalyzed Adv. Phase Shifter | -3/Research | Hacked Adv. Actuator Array | -3/Research | Scanalyzed Exp. Coolant Injector | -3/Research | Scanalyzed Antimissile System | -3/Research | Scanalyzed Hvy. Hardcell Cannon | -2/Testing | Archive Exp. System Shield | -2/Testing | Archive Cld. Antigrav System | -2/Testing | Archive Adv. Gravity Neutralizer | -2/Testing | Archive Cld. Impulse Thruster | -2/Testing | Archive Exp. Reaction Control System | -2/Testing | Hacked Hdn. Centrium Leg | -2/Testing | Archive Com. Tesla Bomb Launcher | -2/Testing | Archive Hdn. Centrium Heavy Treads | -2/Section 7 | Hacked Robot Schematics ------------------ B-36 Bruiser | -7/Zion | Archive S-27 Virus | -7/Zion | Archive A-02 Transporter | -7/Zion | Archive C-57 Dissector | -7/Zion | Archive L-41 Fighter | -6/Data Miner | Free C-35 Carver | -6/Data Miner | Free I-47 Archangel | -6/Data Miner | Free P-70 Sage | -6/Data Miner | Free E-15 Imp | -6/Data Miner | Free C-55 Analyst | -2/Testing | Archive C-65 Expert | -2/Testing | Archive A-15 Conveyor | -2/Testing | Archive Fabricated ------------ Cmb. Gravmag System | x2 | -7/Factory Cmb. Gravmag System | x2 | -7/Factory Cmb. Gravmag System | x2 | -7/Factory Microactuators | x2 | -6/Factory | Authchip Lgt. Regenerative Plating | x1 | -5/Factory | Authchip Quantum Reactor | x2 | -5/Factory | Preloaded S-27 Virus | x4 | -5/Factory | Preloaded Cmb. Gravmag System | x2 | -5/Factory Enh. Nova Cannon | x1 | -4/Factory | Preloaded Cmb. Linear Gravjet | x2 | -4/Factory Com. HERF Cannon | x1 | -4/Factory Com. HERF Cannon | x1 | -4/Factory Cmb. Linear Gravjet | x2 | -4/Factory Cmb. Linear Gravjet | x2 | -3/Research Exp. Terrain Scanner | x1 | -3/Research P-70 Sage | x2 | -3/Research Alien Tech Used ----------------- Core Expander Phase Redirector Sigix Broadsword Matter Drive Core Stripper Dimensional Node Initializer Integrated Reactor Integrated Mediator Integrated Thermoelectric Network High-powered Transdimensional Reconstructor Integrated Dissipator LRC Insulator LRC Boosters Drained L-Cannon Subatomic Replicator Integrity Redistributor Achievements -------------- Gladiator Just Shoot The Terminal Challenges ------------ None Game ------ Seed RefineryBombardmentField Manual? 0 Play Time 08:26:45 Cumulative 355.2 hours Start 2022.06.12 @ 00:34:26 End 2022.06.13 @ 02:59:07 Sessions 5 Manual Loads 0 Difficulty Rogue Special Mode None Game No. 94 Rogue 94 Adventurer 0 Explorer 0 Win Type - Total 18 Types 14/1/3/0/0/0/0/0/0 Lore% 90 Gallery% 91 Achievement% 76 Wizard Run 0 Options --------- ASCII 0 Keyboard 0 Movement Numpad Keybinds 0 Fullscreen 1 Font 14/SmallcapsGlow Map View 84x54 Tactical HUD 1 Map Filters NONE Filters NONE Steam 1 RUN: 32749b95-6c11-4027-92ac-5b52f26c0b13